Workbook

Sheet СВЕДЕНИЯ
A1: СВЕДЕНИЯ | S1: =E1*F1 -> 0 | T1: =J1*$F1 -> 0 | U1: =K1*$F1 -> 0 | V1: =L1*$F1 -> 0 | W1: =O1*$F1 -> 0
A2: о численности работников предприятий и их заработной плате
A3: =Нрег&" за "&LOWER(TEXT(Д1,"ММММ"))&IF(Д1=Д2,""," - "&LOWER(TEXT(Д2,"ММММ")))& " " & LOWER(TEXT(Д2,"ГГГГ"))&" г." -> Быковский район за январь 2018 г.
A4: , | E4: Min размер | F4: Среднесписочная числен- | H4: Начисленный фонд | J4: Среднемесячная | M4: Задолженность по заработной плате | Q4: Информация о налоге
E5: оплаты | F5: ность работников без | H5: оплаты труда за | J5: заработная плата, | M5: (нарастающим итогом с даты возникновения) | Q5: на доходы физических лиц,
E6: труда на | F6: внешних совместителей | H6: отчетный месяц с | J6: рублей | Q6: тыс. рублей
E7: предприятии | F7: и работников | H7: учетом социальных | M7: Сумма | R7: Задолженность
E8: за труд | F8: несписочного состава | H8: выплат, | K8: В том числе | M8: задолженности, | P8: Численность | R8: организации
D9: Вид экономической | E9: неквалифи- | F9: человек | H9: тысяч рублей | M9: тысяч рублей | O9: Период | P9: работников | Q9: Начис- | R9: по налогу
D10: деятельности | E10: цированного | I10: В том числе | J10: Работ- | N10: В том | O10: задержки | P10: перед | Q10: лено | R10: на конец
A11: Месяц | B11: №№ | C11: ПРЕДПРИЯТИЯ | E11: работника | G11: В том числе | I11: внешним | J11: ника | L11: Специа- | N11: числе | O11: выплаты | P11: которыми | Q11: за отчет- | R11: отчетного
B12: п/п | C12: РАЙОНА (ГОРОДА) | E12: (тарифная | G12: имеющих | I12: совместите- | J12: предпри- | L12: листа, | N12: из-за | O12: заработной | P12: организация | Q12: ный | R12: месяца
E13: ставка | F13: ВСЕГО | G13: min размер | H13: ВСЕГО | I13: лям и | J13: ятия(й) | K13: рабочего | L13: служа- | M13: ВСЕГО | N13: отсутствия | O13: платы, | P13: имеет | Q13: месяц | R13: (нарастающим
E14: 1 разряда, | G14: оплаты труда | I14: работникам | L14: щего | N14: бюджетного | O14: мес. | P14: задолжен- | R14: итогом
D15: =начсв()+SUBTOTAL(3,$D$18:$D$18) -> 19 | E15: оклад), рублей | G15: на предприятии | I15: несписочно- | N15: финансиро- | P15: ность, | R15: с даты | S15: гр4*гр5 | T15: гр9*гр5 | U15: гр10*гр5 | V15: гр11*гр5 | W15: гр14*гр5
I16: го состава. | N16: вания | P16: человек | R16: возникновения)
A17: А | B17: 1 | C17: 2 | D17: 3 | E17: 4 | F17: 5 | G17: 6 | H17: 7 | I17: 8 | J17: 9 | K17: 10 | L17: 11 | M17: 12 | N17: 13 | O17: 14 | P17: 15 | Q17: 16 | R17: 17 | S17: 18 | T17: 19 | U17: 20 | V17: 21 | W17: 22
A18: А | C18: Всего по району (городу) | D18: =SUBTOTAL(3,C20:C18970) -> 93 | F18: =SUBTOTAL(9,F20:F18968) -> 1780.6 | G18: =SUBTOTAL(9,G20:G18968) -> 342 | H18: =SUBTOTAL(9,H20:H18968) -> 40073.6 | I18: =SUBTOTAL(9,I20:I18968) -> 553.8 | J18: =SUBTOTAL(9,J20:J18969) -> 1663730.4 | K18: =SUBTOTAL(9,K20:K18969) -> 896046.4 | L18: =SUBTOTAL(9,L20:L18968) -> 1985263 | M18: =SUBTOTAL(9,M20:M18968) -> 50 | N18: =SUBTOTAL(9,N20:N18968) -> 50 | O18: =SUBTOTAL(9,O20:O18968) -> 1.2 | P18: =SUBTOTAL(9,P20:P18968) -> 1 | Q18: =SUBTOTAL(9,Q20:Q18968) -> 5067.8 | R18: =SUBTOTAL(9,R20:R18968) -> 48.5 | S18: =SUBTOTAL(9,S20:S18968) -> 17481316.1 | T18: =SUBTOTAL(9,T20:T18968) -> 39490190.3 | U18: =SUBTOTAL(9,U20:U18968) -> 23612075.9 | V18: =SUBTOTAL(9,V20:V18968) -> 48952274.8 | W18: =SUBTOTAL(9,W20:W18968) -> 2.46
A19: А | C19: в т.ч. по предприятиям: | J19: =IF(F19>0,(H19-I19)*1000/F19,0) -> 0 | O19: =IF(H19>0,M19/H19,0) -> 0 | S19: =E19*F19 -> 0 | T19: =J19*$F19 -> 0 | U19: =K19*$F19 -> 0 | V19: =L19*$F19 -> 0 | W19: =O19*$F19 -> 0
A20: 2013-11-01 | B20: 1 | C20: ГБУЗ "Быковская ЦРБ" | D20: Деятельность больничных организаций | E20: 7800 | F20: 281.9 | G20: 1 | H20: 6285.7 | I20: 89.5 | J20: 21980 | K20: 15782.2 | L20: 22163 | N20: 0 | Q20: 720.9 | R20: 0 | S20: =E20*F20 -> 2198820 | T20: =J20*$F20 -> 6196162 | U20: =K20*$F20 -> 4449002.18 | V20: =L20*$F20 -> 6247749.7 | W20: =O20*$F20 -> 0
A21: 2006-01-01 | B21: 4 | C21: ОАО "БЫКОВОРАЙГАЗ" | D21: Жилищно-коммунальное хозяйство | E21: 0 | F21: 69 | G21: 3 | H21: 420.9 | I21: 11.6 | J21: 6202 | K21: 4577 | L21: 8472 | M21: 0 | N21: 0 | O21: 0 | P21: 0 | Q21: 49.9 | R21: 56 | S21: 0 | T21: 427938 | U21: 315813 | V21: 584568 | W21: 0
A22: 2006-01-01 | B22: 5 | C22: МУП ЖКХ "БЫКОВСКОЕ" | D22: Жилищно-коммунальное хозяйство | E22: 0 | F22: 148 | G22: 0 | H22: 540 | I22: 40.6 | J22: 3374 | K22: 2750 | L22: 11561 | M22: 0 | N22: 0 | O22: 0 | P22: 0 | Q22: 66.5 | R22: 0 | S22: 0 | T22: 499352 | U22: 407000 | V22: 1711028 | W22: 0
A23: 2006-01-01 | B23: 6 | C23: МУП ВИКТОРИЯ | D23: Бытовое обслуживание | E23: 0 | F23: 19 | G23: 3 | H23: 34.2 | I23: 0.6 | J23: 1768 | K23: 1339 | L23: 2972 | M23: 12.9 | N23: 0 | O23: 0.4 | P23: 1 | Q23: 2.4 | R23: 2.4 | S23: 0 | T23: 33592 | U23: 25441 | V23: 56468 | W23: 7.6
A24: 2006-01-01 | B24: 7 | C24: БЫКОВСКАЯ ЦРБ | D24: Здравоохранение | E24: 0 | F24: 398 | G24: 0 | H24: 1662.2 | I24: 2.6 | J24: 4176.4 | K24: 1990 | L24: 4990 | M24: 0 | N24: 0 | O24: 0 | P24: 0 | Q24: 173.4 | R24: 173.4 | S24: 0 | T24: 1662207.2 | U24: 792020 | V24: 1986020 | W24: 0
A25: 2006-01-01 | B25: 8 | C25: КОМИТЕТ ПО КУЛЬТУРЕ | D25: Управление | E25: 0 | F25: 3 | G25: 0 | H25: 24 | I25: 0.8 | J25: 7733 | K25: 4357 | L25: 8000 | M25: 0 | N25: 0 | O25: 0 | P25: 0 | Q25: 2.7 | R25: 0 | S25: 0 | T25: 23199 | U25: 13071 | V25: 24000 | W25: 0
A26: 2006-01-01 | B26: 9 | C26: Ч/П ЗАЙЦЕВА | D26: Торговля | E26: 0 | F26: 81 | G26: 0 | H26: 274.8 | I26: 25.5 | J26: 3078 | K26: 2293 | L26: 6086 | M26: 0 | N26: 0 | O26: 0 | P26: 0 | Q26: 27.9 | R26: 0 | S26: 0 | T26: 249318 | U26: 185733 | V26: 492966 | W26: 0
A27: 2006-01-01 | B27: 10 | C27: ГУЧ АГРАРНЫЙ ТЕХНИКУМ | D27: Образование | E27: 0 | F27: 126 | G27: 0 | H27: 353.8 | I27: 14 | J27: 2697 | K27: 2300 | L27: 3200 | M27: 0 | N27: 0 | O27: 0 | P27: 0 | Q27: 37.8 | R27: 0 | S27: 0 | T27: 339822 | U27: 289800 | V27: 403200 | W27: 0
A28: 2006-01-01 | B28: 11 | C28: СТАНЦИЯ ПО БОРЬБЕ С БОЛЕЗНЯМИ ЖИВОТНЫХ | D28: Сельское хозяйство | E28: 0 | F28: 44 | G28: 0 | H28: 217.2 | I28: 0 | J28: 4936 | K28: 1790 | L28: 6020 | M28: 0 | N28: 0 | O28: 0 | P28: 0 | Q28: 23.3 | R28: 0 | S28: 0 | T28: 217184 | U28: 78760 | V28: 264880 | W28: 0
A29: 2006-01-01 | B29: 12 | C29: БЫКОВСКИЙ ЛЕСХОЗ | D29: Лесное хозяйство | E29: 0 | F29: 26 | G29: 0 | H29: 60.7 | I29: 0 | J29: 2335 | K29: 1700 | L29: 3900 | M29: 0 | N29: 0 | O29: 0 | P29: 0 | Q29: 5.2 | R29: 5.2 | S29: 0 | T29: 60710 | U29: 44200 | V29: 101400 | W29: 0
A30: 2006-01-01 | B30: 13 | C30: АДМИНИСТРАЦИЯ БЫКОВСКОГО МУНИЦИПАЛЬНОГО РАЙОНА | D30: Управление | E30: 0 | F30: 55 | G30: 0 | H30: 496.3 | I30: 0 | J30: 9023 | K30: 3343 | L30: 11152 | M30: 455.1 | N30: 455.1 | O30: 0.9 | P30: 42 | Q30: 62.9 | R30: 106.2 | S30: 0 | T30: 496265 | U30: 183865 | V30: 613360 | W30: 49.5
A31: 2006-01-01 | B31: 14 | C31: ФИНАНСОВОЕ УПРАВЛЕНИЕ | D31: Управление | E31: 0 | F31: 15 | G31: 2 | H31: 110.8 | I31: 0 | J31: 7387 | K31: 2550 | L31: 8131 | M31: 0 | N31: 0 | O31: 0 | P31: 0 | Q31: 12.3 | R31: 0 | S31: 0 | T31: 110805 | U31: 38250 | V31: 121965 | W31: 0
A32: 2006-01-01 | B32: 15 | C32: КОМИТЕТ ПО ОБРАЗОВАНИЮ | D32: Управление | E32: 0 | F32: 10 | G32: 0 | H32: 41.4 | I32: 0 | J32: 4140 | K32: 2192 | L32: 5439 | M32: 0 | N32: 0 | O32: 0 | P32: 0 | Q32: 4.8 | R32: 4.8 | S32: 0 | T32: 41400 | U32: 21920 | V32: 54390 | W32: 0
A33: 2006-01-01 | B33: 16 | C33: ОБЩЕОБРАЗОВАТЕЛЬНЫЕ ШКОЛЫ | D33: Образование | E33: 0 | F33: 991 | G33: 0 | H33: 3124.1 | I33: 101.6 | J33: 3153 | K33: 1127 | L33: 4434 | M33: 478 | N33: 478 | O33: 0.2 | P33: 225 | Q33: 337 | R33: 337 | S33: 0 | T33: 3124623 | U33: 1116857 | V33: 4394094 | W33: 198.2
A34: 2006-01-01 | B34: 17 | C34: ДОМА КУЛЬТУРЫ, МУЗЫКАЛЬНАЯ ШКОЛА | D34: Культура и искусство | E34: 0 | F34: 145 | G34: 0 | H34: 516.4 | I34: 39.8 | J34: 3286 | K34: 1367 | L34: 3561 | M34: 0 | N34: 0 | O34: 0 | P34: 0 | Q34: 63.8 | R34: 0 | S34: 0 | T34: 476470 | U34: 198215 | V34: 516345 | W34: 0
A35: 2006-01-01 | B35: 18 | C35: КОМПЛЕКСНЫЙ ЦЕНТР СОЦИАЛЬНОГО ОБСЛУЖИВАНИЯ НАСЕЛЕНИЯ | E35: 0 | F35: 146 | G35: 0 | H35: 303.3 | I35: 0 | J35: 2077 | K35: 1863 | L35: 4100 | M35: 0 | N35: 0 | O35: 0 | P35: 0 | Q35: 24.1 | R35: 0 | S35: 0 | T35: 303242 | U35: 271998 | V35: 598600 | W35: 0
A36: 2006-01-01 | B36: 19 | C36: ТУ ПО БЫКОВСКОМУ Р-НУ УСЗН АВО | E36: 0 | F36: 23 | G36: 0 | H36: 270 | I36: 0 | J36: 11740 | K36: 1894 | L36: 11966 | M36: 0 | N36: 0 | O36: 0 | P36: 0 | Q36: 24.4 | R36: 0 | S36: 0 | T36: 270020 | U36: 43562 | V36: 275218 | W36: 0
A37: 2006-02-01 | B37: 1 | C37: ПО "ВОЛГА" | D37: Общественное питание | E37: 0 | F37: 26 | G37: 0 | H37: 35.3 | I37: 0 | J37: 1358 | K37: 1200 | L37: 2000 | M37: 40 | N37: 0 | O37: 1.1 | P37: 12 | Q37: 2.6 | R37: 0 | S37: 0 | T37: 35308 | U37: 31200 | V37: 52000 | W37: 28.6
A38: 2006-02-01 | B38: 2 | C38: ОАО "БЫКОВОРАЙГАЗ" | D38: Жилищно-коммунальное хозяйство | E38: 0 | F38: 69 | G38: 0 | H38: 266.4 | I38: 0 | J38: 3861 | K38: 3034 | L38: 6391 | M38: 76 | N38: 0 | O38: 0.3 | P38: 19 | Q38: 28 | R38: 28 | S38: 0 | T38: 266409 | U38: 209346 | V38: 440979 | W38: 20.7
A39: 2006-02-01 | B39: 3 | C39: МУП ЖКХ "БЫКОВСКОЕ" | D39: Жилищно-коммунальное хозяйство | E39: 0 | F39: 135 | G39: 0 | H39: 840.2 | I39: 3.5 | J39: 6198 | K39: 5882 | L39: 8555 | M39: 295 | N39: 0 | O39: 0.4 | P39: 135 | Q39: 90 | R39: 420.4 | S39: 0 | T39: 836730 | U39: 794070 | V39: 1154925 | W39: 54
A40: 2006-02-01 | B40: 4 | C40: МУП ВИКТОРИЯ | D40: Бытовое обслуживание | E40: 0 | F40: 19 | G40: 2 | H40: 40.7 | I40: 2.4 | J40: 2016 | K40: 1436 | L40: 3639 | M40: 11.9 | N40: 0 | O40: 0.3 | P40: 10 | Q40: 3.4 | R40: 3.4 | S40: 0 | T40: 38304 | U40: 27284 | V40: 69141 | W40: 5.7
A41: 2006-02-01 | B41: 5 | C41: БЫКОВСКАЯ ЦРБ | D41: Здравоохранение | E41: 0 | F41: 468 | G41: 0 | H41: 1592.5 | I41: 2.6 | J41: 3402 | K41: 1890 | L41: 3856 | M41: 0 | N41: 0 | O41: 0 | P41: 0 | Q41: 177.7 | R41: 177.7 | S41: 0 | T41: 1592136 | U41: 884520 | V41: 1804608 | W41: 0
A42: 2006-02-01 | B42: 6 | C42: КОМИТЕТ ПО КУЛЬТУРЕ | D42: Управление | E42: 0 | F42: 3 | G42: 0 | H42: 36.1 | I42: 0.8 | J42: 11767 | K42: 4357 | L42: 12033 | M42: 0 | N42: 0 | O42: 0 | P42: 0 | Q42: 4.8 | R42: 0 | S42: 0 | T42: 35301 | U42: 13071 | V42: 36099 | W42: 0
A43: 2006-02-01 | B43: 7 | C43: Ч/П ЗАЙЦЕВА | D43: Торговля | E43: 0 | F43: 75 | G43: 0 | H43: 239.4 | I43: 23.5 | J43: 2879 | K43: 2637 | L43: 5229 | M43: 0 | N43: 0 | O43: 0 | P43: 0 | Q43: 22 | R43: 0 | S43: 0 | T43: 215925 | U43: 197775 | V43: 392175 | W43: 0
A44: 2006-02-01 | B44: 9 | C44: ГУЧ АГРАРНЫЙ ТЕХНИКУМ | D44: Образование | E44: 0 | F44: 123 | G44: 6 | H44: 264.9 | I44: 10.6 | J44: 2067 | K44: 2300 | L44: 3200 | M44: 0 | N44: 0 | O44: 0 | P44: 0 | Q44: 28.8 | R44: 0 | S44: 0 | T44: 254241 | U44: 282900 | V44: 393600 | W44: 0
A45: 2006-02-01 | B45: 10 | C45: СТАНЦИЯ ПО БОРЬБЕ С БОЛЕЗНЯМИ ЖИВОТНЫХ | D45: Сельское хозяйство | E45: 0 | F45: 44 | G45: 0 | H45: 191.4 | I45: 0 | J45: 4350 | K45: 1700 | L45: 4700 | M45: 0 | N45: 0 | O45: 0 | P45: 0 | Q45: 18.1 | R45: 0 | S45: 0 | T45: 191400 | U45: 74800 | V45: 206800 | W45: 0
A46: 2006-02-01 | B46: 11 | C46: БЫКОВСКИЙ ЛЕСХОЗ | D46: Лесное хозяйство | E46: 0 | F46: 27 | G46: 0 | H46: 47.2 | I46: 0 | J46: 1748 | K46: 1300 | L46: 3100 | M46: 0 | N46: 0 | O46: 0 | P46: 0 | Q46: 3.4 | R46: 5.2 | S46: 0 | T46: 47196 | U46: 35100 | V46: 83700 | W46: 0
A47: 2006-02-01 | B47: 12 | C47: АДМИНИСТРАЦИЯ БЫКОВСКОГО МУНИЦИПАЛЬНОГО РАЙОНА | D47: Управление | E47: 0 | F47: 74 | G47: 0 | H47: 765.3 | I47: 0 | J47: 10342 | K47: 3100 | L47: 11878 | M47: 0 | N47: 0 | O47: 0 | P47: 0 | Q47: 98.1 | R47: 59.7 | S47: 0 | T47: 765308 | U47: 229400 | V47: 878972 | W47: 0
A48: 2006-02-01 | B48: 13 | C48: ФИНАНСОВОЕ УПРАВЛЕНИЕ | D48: Управление | E48: 0 | F48: 15 | G48: 0 | H48: 402.4 | I48: 0 | J48: 26827 | K48: 2400 | L48: 28571 | M48: 0 | N48: 0 | O48: 0 | P48: 0 | Q48: 47.3 | R48: 0 | S48: 0 | T48: 402405 | U48: 36000 | V48: 428565 | W48: 0
A49: 2006-02-01 | B49: 14 | C49: ООО "ЗАВОЛЖЬЕ" | D49: Мукомольно-крупяная | E49: 0 | F49: 33 | G49: 0 | H49: 121.3 | I49: 0 | J49: 3676 | K49: 2780 | L49: 3900 | M49: 0 | N49: 0 | O49: 0 | P49: 0 | Q49: 13.5 | R49: 13.5 | S49: 0 | T49: 121308 | U49: 91740 | V49: 128700 | W49: 0
A50: 2006-02-01 | B50: 15 | C50: ОБЩЕОБРАЗОВАТЕЛЬНЫЕ ШКОЛЫ | D50: Образование | E50: 0 | F50: 995 | G50: 0 | H50: 3486.3 | I50: 93.3 | J50: 3410 | K50: 1310 | L50: 4438 | M50: 0 | N50: 0 | O50: 0 | P50: 0 | Q50: 330.1 | R50: 330.1 | S50: 0 | T50: 3392950 | U50: 1303450 | V50: 4415810 | W50: 0
A51: 2006-02-01 | B51: 16 | C51: ДОМА КУЛЬТУРЫ, МУЗЫКАЛЬНАЯ ШКОЛА | D51: Культура и искусство | E51: 0 | F51: 145 | G51: 0 | H51: 470.7 | I51: 36.7 | J51: 2993 | K51: 1367 | L51: 3246 | M51: 0 | N51: 0 | O51: 0 | P51: 0 | Q51: 43 | R51: 0 | S51: 0 | T51: 433985 | U51: 198215 | V51: 470670 | W51: 0
A52: 2006-02-01 | B52: 17 | C52: КОМПЛЕКСНЫЙ ЦЕНТР СОЦИАЛЬНОГО ОБСЛУЖИВАНИЯ НАСЕЛЕНИЯ | E52: 0 | F52: 133 | G52: 0 | H52: 533.5 | I52: 36.5 | J52: 3737 | K52: 2970 | L52: 5200 | M52: 0 | N52: 0 | O52: 0 | P52: 0 | Q52: 53.4 | R52: 0 | S52: 0 | T52: 497021 | U52: 395010 | V52: 691600 | W52: 0
A53: 2006-02-01 | B53: 18 | C53: ТУ ПО БЫКОВСКОМУ Р-НУ УСЗН АВО | E53: 0 | F53: 24 | G53: 0 | H53: 228.3 | I53: 0 | J53: 9513 | K53: 2147 | L53: 11452 | M53: 0 | N53: 0 | O53: 0 | P53: 0 | Q53: 26.4 | R53: 0 | S53: 0 | T53: 228312 | U53: 51528 | V53: 274848 | W53: 0
A54: 2006-02-01 | B54: 19 | C54: МУП БЫКОВСКАЯ ЦРА № 64 | E54: 0 | F54: 20 | G54: 0 | H54: 56.5 | I54: 1.1 | J54: 2770 | K54: 1400 | L54: 4000 | M54: 0 | N54: 0 | O54: 0 | P54: 0 | Q54: 5.2 | R54: 0 | S54: 0 | T54: 55400 | U54: 28000 | V54: 80000 | W54: 0
A55: 2006-03-01 | B55: 1 | C55: ПО "ВОЛГА" | D55: Общественное питание | E55: 0 | F55: 17 | G55: 0 | H55: 34.5 | I55: 0 | J55: 2029 | K55: 2000 | L55: 2500 | M55: 0 | N55: 0 | O55: 0 | P55: 0 | Q55: 2.6 | R55: 2.6 | S55: 0 | T55: 34493 | U55: 34000 | V55: 42500 | W55: 0
A56: 2006-03-01 | B56: 2 | C56: ОАО "БЫКОВОРАЙГАЗ" | D56: Жилищно-коммунальное хозяйство | E56: 0 | F56: 69 | G56: 0 | H56: 307.9 | I56: 0 | J56: 4462 | K56: 3633 | L56: 7000 | M56: 212 | N56: 0 | O56: 0.7 | P56: 69 | Q56: 34 | R56: 34 | S56: 0 | T56: 307878 | U56: 250677 | V56: 483000 | W56: 48.3
A57: 2006-03-01 | B57: 3 | C57: МУП ЖКХ "БЫКОВСКОЕ" | D57: Жилищно-коммунальное хозяйство | E57: 0 | F57: 134 | G57: 1 | H57: 724 | I57: 3.1 | J57: 5380 | K57: 5298 | L57: 6253 | M57: 485 | N57: 0 | O57: 0.7 | P57: 135 | Q57: 89.3 | R57: 518.7 | S57: 0 | T57: 720920 | U57: 709932 | V57: 837902 | W57: 93.8
A58: 2006-03-01 | B58: 4 | C58: МУП ВИКТОРИЯ | D58: Бытовое обслуживание | E58: 0 | F58: 19 | G58: 2 | H58: 42.9 | I58: 0.7 | J58: 2152 | K58: 1716 | L58: 3633 | M58: 0 | N58: 0 | O58: 0 | P58: 0 | Q58: 3.4 | R58: 3.4 | S58: 0 | T58: 40888 | U58: 32604 | V58: 69027 | W58: 0
A59: 2006-03-01 | B59: 5 | C59: БЫКОВСКАЯ ЦРБ | D59: Здравоохранение | E59: 0 | F59: 464 | G59: 0 | H59: 1672.7 | I59: 2.6 | J59: 3599 | K59: 1800 | L59: 4152 | M59: 0 | N59: 0 | O59: 0 | P59: 0 | Q59: 180.5 | R59: 180.5 | S59: 0 | T59: 1669936 | U59: 835200 | V59: 1926528 | W59: 0
A60: 2006-03-01 | B60: 6 | C60: КОМИТЕТ ПО КУЛЬТУРЕ | D60: Управление | E60: 0 | F60: 145 | G60: 0 | H60: 478.6 | I60: 35.5 | J60: 3055 | K60: 1367 | L60: 3301 | M60: 0 | N60: 0 | O60: 0 | P60: 0 | Q60: 46.5 | R60: 0 | S60: 0 | T60: 442975 | U60: 198215 | V60: 478645 | W60: 0
A61: 2006-03-01 | B61: 7 | C61: Ч/П ЗАЙЦЕВА | D61: Торговля | E61: 0 | F61: 75 | G61: 0 | H61: 222.9 | I61: 24.3 | J61: 2648 | K61: 2478 | L61: 4300 | M61: 0 | N61: 0 | O61: 0 | P61: 0 | Q61: 19.7 | R61: 0 | S61: 0 | T61: 198600 | U61: 185850 | V61: 322500 | W61: 0
A62: 2006-03-01 | B62: 9 | C62: ГУЧ АГРАРНЫЙ ТЕХНИКУМ | D62: Образование | E62: 0 | F62: 134 | G62: 0 | H62: 272 | I62: 11 | J62: 1948 | K62: 2300 | L62: 3200 | M62: 0 | N62: 0 | O62: 0 | P62: 0 | Q62: 25 | R62: 0 | S62: 0 | T62: 261032 | U62: 308200 | V62: 428800 | W62: 0
A63: 2006-03-01 | B63: 10 | C63: СТАНЦИЯ ПО БОРЬБЕ С БОЛЕЗНЯМИ ЖИВОТНЫХ | D63: Сельское хозяйство | E63: 0 | F63: 45 | G63: 0 | H63: 169.8 | I63: 0 | J63: 3773 | K63: 1200 | L63: 3800 | M63: 0 | N63: 0 | O63: 0 | P63: 0 | Q63: 21.6 | R63: 0 | S63: 0 | T63: 169785 | U63: 54000 | V63: 171000 | W63: 0
A64: 2006-03-01 | B64: 11 | C64: БЫКОВСКИЙ ЛЕСХОЗ | D64: Лесное хозяйство | E64: 0 | F64: 26 | G64: 0 | H64: 55.3 | I64: 0 | J64: 2100 | K64: 1700 | L64: 3300 | M64: 0 | N64: 0 | O64: 0 | P64: 0 | Q64: 4.8 | R64: 0 | S64: 0 | T64: 54600 | U64: 44200 | V64: 85800 | W64: 0
A65: 2006-03-01 | B65: 12 | C65: АДМИНИСТРАЦИЯ БЫКОВСКОГО МУНИЦИПАЛЬНОГО РАЙОНА | D65: Управление | E65: 0 | F65: 73 | G65: 0 | H65: 635 | I65: 0 | J65: 8699 | K65: 1265 | L65: 9963 | M65: 0 | N65: 0 | O65: 0 | P65: 0 | Q65: 54.9 | R65: 54.9 | S65: 0 | T65: 635027 | U65: 92345 | V65: 727299 | W65: 0
A66: 2006-03-01 | B66: 13 | C66: ФИНАНСОВОЕ УПРАВЛЕНИЕ | D66: Управление | E66: 0 | F66: 15 | G66: 0 | H66: 205.2 | I66: 0 | J66: 13680 | K66: 13600 | L66: 14900 | M66: 0 | N66: 0 | O66: 0 | P66: 0 | Q66: 29 | R66: 29 | S66: 0 | T66: 205200 | U66: 204000 | V66: 223500 | W66: 0
A67: 2006-03-01 | B67: 14 | C67: ПО "КОЛОС" | D67: Торговля | E67: 0 | F67: 56 | G67: 0 | H67: 241.7 | I67: 76.4 | J67: 2952 | K67: 2551 | L67: 7040 | M67: 0 | N67: 0 | O67: 0 | P67: 0 | Q67: 25.8 | R67: 0 | S67: 0 | T67: 165312 | U67: 142856 | V67: 394240 | W67: 0
A68: 2006-03-01 | B68: 15 | C68: ОБЩЕОБРАЗОВАТЕЛЬНЫЕ ШКОЛЫ | D68: Образование | E68: 0 | F68: 1002 | G68: 0 | H68: 3526.9 | I68: 93.4 | J68: 3426 | K68: 1334 | L68: 4588 | M68: 0 | N68: 0 | O68: 0 | P68: 0 | Q68: 335.2 | R68: 330.1 | S68: 0 | T68: 3432852 | U68: 1336668 | V68: 4597176 | W68: 0
A69: 2006-03-01 | B69: 16 | C69: БЫКОВСКОЕ СЕЛЬСКОЕ ПОСЕЛЕНИЕ | D69: Управление | E69: 0 | F69: 9 | G69: 1 | H69: 76.2 | I69: 1.3 | J69: 8322 | K69: 1300 | L69: 8400 | M69: 0 | N69: 0 | O69: 0 | P69: 0 | Q69: 8.3 | R69: 8.3 | S69: 0 | T69: 74898 | U69: 11700 | V69: 75600 | W69: 0
A70: 2006-03-01 | B70: 17 | C70: КОМПЛЕКСНЫЙ ЦЕНТР СОЦИАЛЬНОГО ОБСЛУЖИВАНИЯ НАСЕЛЕНИЯ | E70: 0 | F70: 24 | G70: 0 | H70: 195.8 | I70: 0 | J70: 8165 | K70: 2107 | L70: 9753 | M70: 0 | N70: 0 | O70: 0 | P70: 0 | Q70: 23.8 | R70: 0 | S70: 0 | T70: 195960 | U70: 50568 | V70: 234072 | W70: 0
A71: 2006-03-01 | B71: 18 | C71: В -БАЛЫКЛЕЙСКОЕ СЕЛЬСКОЕ ПОСЕЛЕНИЕ | D71: Управление | E71: 0 | F71: 9 | G71: 0 | H71: 48.5 | I71: 9.4 | J71: 4344 | K71: 1265 | L71: 5393 | M71: 0 | N71: 0 | O71: 0 | P71: 0 | Q71: 5.2 | R71: 5.2 | S71: 0 | T71: 39096 | U71: 11385 | V71: 48537 | W71: 0
A72: 2006-03-01 | B72: 19 | C72: МУП БЫКОВСКАЯ ЦРА № 64 | E72: 0 | F72: 28 | G72: 8 | H72: 69.7 | I72: 2 | J72: 2203 | K72: 1521 | L72: 5239 | M72: 0 | N72: 0 | O72: 0 | P72: 0 | Q72: 6.8 | R72: 0 | S72: 0 | T72: 61684 | U72: 42588 | V72: 146692 | W72: 0
A73: 2006-04-01 | B73: 1 | C73: ПО "КОЛОС" | D73: Торговля | E73: 0 | F73: 55 | G73: 0 | H73: 233.6 | I73: 54.8 | J73: 3251 | K73: 2884 | L73: 6920 | M73: 0 | N73: 0 | O73: 0 | P73: 0 | Q73: 24.3 | R73: 24.3 | S73: 0 | T73: 178805 | U73: 158620 | V73: 380600 | W73: 0
A74: 2006-04-01 | B74: 2 | C74: ПО "ВОЛГА" | D74: Общественное питание | E74: 0 | F74: 21 | G74: 0 | H74: 37.6 | I74: 0 | J74: 1790 | K74: 1500 | L74: 2000 | M74: 0 | N74: 0 | O74: 0 | P74: 0 | Q74: 0 | R74: 0 | S74: 0 | T74: 37590 | U74: 31500 | V74: 42000 | W74: 0
A75: 2006-04-01 | B75: 3 | C75: ОАО "БЫКОВОРАЙГАЗ" | D75: Жилищно-коммунальное хозяйство | E75: 0 | F75: 70 | G75: 0 | H75: 293.8 | I75: 5.4 | J75: 4120 | K75: 3220 | L75: 6811 | M75: 0 | N75: 0 | O75: 0 | P75: 0 | Q75: 32.8 | R75: 32.8 | S75: 0 | T75: 288400 | U75: 225400 | V75: 476770 | W75: 0
A76: 2006-04-01 | B76: 4 | C76: МУП ЖКХ "БЫКОВСКОЕ" | D76: Жилищно-коммунальное хозяйство | E76: 0 | F76: 73 | G76: 0 | H76: 956.2 | I76: 4.6 | J76: 13035 | K76: 12779 | L76: 14894 | M76: 280 | N76: 0 | O76: 0.3 | P76: 135 | Q76: 115.3 | R76: 634 | S76: 0 | T76: 951555 | U76: 932867 | V76: 1087262 | W76: 21.9
A77: 2006-04-01 | B77: 5 | C77: МУП ВИКТОРИЯ | D77: Бытовое обслуживание | E77: 0 | F77: 19 | G77: 2 | H77: 43.9 | I77: 1.4 | J77: 2237 | K77: 1850 | L77: 3600 | M77: 0 | N77: 0 | O77: 0 | P77: 0 | Q77: 3.5 | R77: 3.5 | S77: 0 | T77: 42503 | U77: 35150 | V77: 68400 | W77: 0
A78: 2006-04-01 | B78: 6 | C78: БЫКОВСКАЯ ЦРБ | D78: Здравоохранение | E78: 0 | F78: 464 | G78: 0 | H78: 1670.7 | I78: 2.6 | J78: 3600 | K78: 1797 | L78: 4148 | M78: 0 | N78: 0 | O78: 0 | P78: 0 | Q78: 216.9 | R78: 216.9 | S78: 0 | T78: 1670400 | U78: 833808 | V78: 1924672 | W78: 0
A79: 2006-04-01 | B79: 7 | C79: КУЛЬТУРА | D79: культура и искусство | E79: 0 | F79: 145 | G79: 0 | H79: 525.9 | I79: 39.6 | J79: 3354 | K79: 1367 | L79: 3627 | M79: 0 | N79: 0 | O79: 0 | P79: 0 | Q79: 40.2 | R79: 0 | S79: 0 | T79: 486330 | U79: 198215 | V79: 525915 | W79: 0
A80: 2006-04-01 | B80: 8 | C80: Ч/П ЗАЙЦЕВА | D80: Торговля | E80: 0 | F80: 77 | G80: 0 | H80: 260.9 | I80: 28.9 | J80: 3130 | K80: 2781 | L80: 5329 | M80: 0 | N80: 0 | O80: 0 | P80: 0 | Q80: 25.5 | R80: 25.5 | S80: 0 | T80: 241010 | U80: 214137 | V80: 410333 | W80: 0
A81: 2006-04-01 | B81: 9 | C81: ГУЧ АГРАРНЫЙ ТЕХНИКУМ | D81: Образование | E81: 0 | F81: 134 | G81: 7 | H81: 288.7 | I81: 11.8 | J81: 2301 | K81: 2300 | L81: 3200 | M81: 0 | N81: 0 | O81: 0 | P81: 0 | Q81: 27.5 | R81: 0 | S81: 0 | T81: 308334 | U81: 308200 | V81: 428800 | W81: 0
A82: 2006-04-01 | B82: 10 | C82: СТАНЦИЯ ПО БОРЬБЕ С БОЛЕЗНЯМИ ЖИВОТНЫХ | D82: Сельское хозяйство | E82: 0 | F82: 45 | G82: 0 | H82: 208.5 | I82: 0 | J82: 4633 | K82: 3400 | L82: 9800 | M82: 0 | N82: 0 | O82: 0 | P82: 0 | Q82: 26.8 | R82: 0 | S82: 0 | T82: 208485 | U82: 153000 | V82: 441000 | W82: 0
A83: 2006-04-01 | B83: 11 | C83: БЫКОВСКИЙ ЛЕСХОЗ | D83: Лесное хозяйство | E83: 0 | F83: 25 | G83: 0 | H83: 82.8 | I83: 0 | J83: 3300 | K83: 3245 | L83: 3454 | M83: 0 | N83: 0 | O83: 0 | P83: 0 | Q83: 7.5 | R83: 0 | S83: 0 | T83: 82500 | U83: 81125 | V83: 86350 | W83: 0
A84: 2006-04-01 | B84: 12 | C84: ПРИМОРСКОЕ СЕЛЬСКОЕ ПОСЕЛЕНИЕ | D84: Управление | E84: 0 | F84: 18 | G84: 0 | H84: 76.6 | I84: 0 | J84: 4255 | K84: 2900 | L84: 6600 | M84: 0 | N84: 0 | O84: 0 | P84: 0 | Q84: 7.9 | R84: 0 | S84: =E84*F84 -> 0 | T84: =J84*$F84 -> 76590 | U84: =K84*$F84 -> 52200 | V84: =L84*$F84 -> 118800 | W84: =O84*$F84 -> 0
A85: 2006-04-01 | B85: 13 | C85: ФИНАНСОВОЕ УПРАВЛЕНИЕ | D85: Управление | E85: 0 | F85: 15 | G85: 0 | H85: 230.9 | I85: 0 | J85: 15393 | K85: 6700 | L85: 17200 | M85: 0 | N85: 0 | O85: 0 | P85: 0 | Q85: 0 | R85: 0 | S85: 0 | T85: 230895 | U85: 100500 | V85: 258000 | W85: 0
A86: 2006-04-01 | B86: 14 | C86: БЫКОВСКОЕ СЕЛЬСКОЕ ПОСЕЛЕНИЕ | D86: Управление | E86: 0 | F86: 15.5 | G86: 0 | H86: 96.8 | I86: 0 | J86: 6245 | K86: 1189 | L86: 7487 | M86: 0 | N86: 0 | O86: 0 | P86: 0 | Q86: 0 | R86: 0 | S86: 0 | T86: 96797.5 | U86: 18429.5 | V86: 116048.5 | W86: 0
A87: 2006-04-01 | B87: 15 | C87: ОБЩЕОБРАЗОВАТЕЛЬНЫЕ ШКОЛЫ | D87: Образование | E87: 0 | F87: 959 | G87: 0 | H87: 3370.7 | I87: 84.6 | J87: 3426 | K87: 1314 | L87: 4459 | M87: 0 | N87: 0 | O87: 0 | P87: 0 | Q87: 322.6 | R87: 322.6 | S87: 0 | T87: 3285534 | U87: 1260126 | V87: 4276181 | W87: 0
A88: 2006-04-01 | B88: 16 | C88: В -БАЛЫКЛЕЙСКОЕ СЕЛЬСКОЕ ПОСЕЛЕНИЕ | D88: управление | E88: 0 | F88: 8 | G88: 0 | H88: 48.5 | I88: 0 | J88: 6062 | K88: 2685 | L88: 8094 | M88: 0 | N88: 0 | O88: 0 | P88: 0 | Q88: 5.2 | R88: 0 | S88: 0 | T88: 48496 | U88: 21480 | V88: 64752 | W88: 0
A89: 2006-04-01 | B89: 17 | C89: ТУ ПО БЫКОВСКОМУ Р-НУ УСЗН АВО | D89: Управление | E89: 0 | F89: 25 | G89: 0 | H89: 220.1 | I89: 0 | J89: 8804 | K89: 2378 | L89: 10831 | M89: 0 | N89: 0 | O89: 0 | P89: 0 | Q89: 26.5 | R89: 0 | S89: 0 | T89: 220100 | U89: 59450 | V89: 270775 | W89: 0
A90: 2006-04-01 | B90: 18 | C90: МУП БЫКОВСКАЯ ЦРА № 64 | D90: Торговля | E90: 0 | F90: 34 | G90: 10 | H90: 74.7 | I90: 3.3 | J90: 2100 | K90: 1100 | L90: 5211 | M90: 0 | N90: 0 | O90: 0 | P90: 0 | Q90: 7.6 | R90: 0 | S90: 0 | T90: 71400 | U90: 37400 | V90: 177174 | W90: 0
A91: 2006-04-01 | B91: 19 | C91: ООО "БЫКОВОРАЙКОМХОЗ" | D91: Жилищно-коммунальное хозяйство | E91: 0 | F91: 31 | G91: 0 | H91: 123 | I91: 0.7 | J91: 3945 | K91: 3670 | L91: 5210 | M91: 0 | N91: 0 | O91: 0 | P91: 0 | Q91: 15.9 | R91: 15.9 | S91: 0 | T91: 122295 | U91: 113770 | V91: 161510 | W91: 0
A92: 2006-05-01 | B92: 1 | C92: МУП БЫКОВСКАЯ ЦРА № 64 | D92: Розничная торговля, кроме торговли автотранспортными средствами мотоциклами; ремонт бытовых изделий | E92: 0 | F92: 29 | G92: 0 | H92: 82.9 | I92: 5.5 | J92: 2668 | K92: 2000 | L92: 5300 | M92: 0 | N92: 0 | O92: 0 | P92: 0 | Q92: 8.6 | R92: 8.6 | S92: 0 | T92: 77372 | U92: 58000 | V92: 153700 | W92: 0
A93: 2006-05-01 | B93: 2 | C93: ПО "КОЛОС" | D93: Розничная торговля, кроме торговли автотранспортными средствами мотоциклами; ремонт бытовых изделий | E93: 0 | F93: 54 | G93: 1 | H93: 240.8 | I93: 43 | J93: 3732 | K93: 3245 | L93: 7760 | M93: 0 | N93: 0 | O93: 0 | P93: 0 | Q93: 25.4 | R93: 0 | S93: 0 | T93: 201528 | U93: 175230 | V93: 419040 | W93: 0
A94: 2006-05-01 | B94: 3 | C94: ПО "ВОЛГА" | D94: общественное питание | E94: 0 | F94: 21 | G94: 0 | H94: 37.9 | I94: 0 | J94: 2000 | K94: 2000 | L94: 2000 | M94: 0 | N94: 0 | O94: 0 | P94: 0 | Q94: 3.2 | R94: 3.2 | S94: 0 | T94: 42000 | U94: 42000 | V94: 42000 | W94: 0
A95: 2006-05-01 | B95: 4 | C95: ОАО "БЫКОВОРАЙГАЗ" | D95: жилищно - коммунальные услуги | E95: 0 | F95: 70 | G95: 0 | H95: 343.6 | I95: 16.4 | J95: 4674 | K95: 3997 | L95: 7591 | M95: 0 | N95: 0 | O95: 0 | P95: 0 | Q95: 39.2 | R95: 39.2 | S95: 0 | T95: 327180 | U95: 279790 | V95: 531370 | W95: 0
A96: 2006-05-01 | B96: 5 | C96: ООО "РАССВЕТ" | D96: жилищно - коммунальные услуги | E96: 0 | F96: 14 | G96: 0 | H96: 56.4 | I96: 0 | J96: 4029 | K96: 3758 | L96: 5646 | M96: 0 | N96: 0 | O96: 0 | P96: 0 | Q96: 6.7 | R96: 6.7 | S96: 0 | T96: 56406 | U96: 52612 | V96: 79044 | W96: 0
A97: 2006-05-01 | B97: 6 | C97: МУП ВИКТОРИЯ | D97: Бытовое обслуживание | E97: 0 | F97: 19 | G97: 7 | H97: 60.7 | I97: 6 | J97: 2878 | K97: 2541 | L97: 3611 | M97: 0 | N97: 0 | O97: 0 | P97: 0 | Q97: 5.1 | R97: 0 | S97: 0 | T97: 54682 | U97: 48279 | V97: 68609 | W97: 0
A98: 2006-05-01 | B98: 7 | C98: БЫКОВСКАЯ ЦРБ | D98: Здравоохранение | E98: 0 | F98: 465 | G98: 0 | H98: 2420.7 | I98: 2.7 | J98: 5206 | K98: 2480 | L98: 6040 | M98: 0 | N98: 0 | O98: 0 | P98: 0 | Q98: 314.6 | R98: 314.6 | S98: 0 | T98: 2420790 | U98: 1153200 | V98: 2808600 | W98: 0
A99: 2006-05-01 | B99: 8 | C99: ООО "БЫКОВОРАЙКОМХОЗ" | D99: жилищно - коммунальные услуги | E99: 0 | F99: 87 | G99: 0 | H99: 392.4 | I99: 1.8 | J99: 4490 | K99: 4217 | L99: 5920 | M99: 0 | N99: 0 | O99: 0 | P99: 0 | Q99: 42.1 | R99: 42.1 | S99: 0 | T99: 390630 | U99: 366879 | V99: 515040 | W99: 0
A100: 2006-05-01 | B100: 9 | C100: Ч/П ЗАЙЦЕВА | D100: розничная торговля | E100: 0 | F100: 79 | G100: 4 | H100: 294.2 | I100: 21.7 | J100: 3633 | K100: 3271 | L100: 5286 | M100: 0 | N100: 0 | O100: 0 | P100: 0 | Q100: 30.2 | R100: 0 | S100: 0 | T100: 287007 | U100: 258409 | V100: 417594 | W100: 0
A101: 2006-05-01 | B101: 10 | C101: ГУЧ АГРАРНЫЙ ТЕХНИКУМ | D101: Образование | E101: 0 | F101: 137 | G101: 0 | H101: 319.1 | I101: 19.8 | J101: 2185 | K101: 2100 | L101: 3680 | M101: 0 | N101: 0 | O101: 0 | P101: 0 | Q101: 33.9 | R101: 0 | S101: 0 | T101: 299345 | U101: 287700 | V101: 504160 | W101: 0
A102: 2006-05-01 | B102: 11 | C102: СТАНЦИЯ ПО БОРЬБЕ С БОЛЕЗНЯМИ ЖИВОТНЫХ | D102: Сельское хозяйство | E102: 0 | F102: 45 | G102: 0 | H102: 329 | I102: 0 | J102: 7311 | K102: 2380 | L102: 8150 | M102: 0 | N102: 0 | O102: 0 | P102: 0 | Q102: 36.5 | R102: 36.5 | S102: 0 | T102: 328995 | U102: 107100 | V102: 366750 | W102: 0
A103: 2006-05-01 | B103: 12 | C103: БЫКОВСКИЙ ЛЕСХОЗ | D103: Лесное хозяйство | E103: 0 | F103: 25 | G103: 0 | H103: 85.5 | I103: 0 | J103: 3420 | K103: 2166 | L103: 5810 | M103: 0 | N103: 0 | O103: 0 | P103: 0 | Q103: 8.1 | R103: 8.1 | S103: 0 | T103: 85500 | U103: 54150 | V103: 145250 | W103: 0
A104: 2006-05-01 | B104: 13 | C104: АДМИНИСТРАЦИЯ БЫКОВСКОГО МУНИЦИПАЛЬНОГО РАЙОНА | D104: управление | E104: 0 | F104: 76 | G104: 0 | H104: 856.5 | I104: 37.8 | J104: 10772 | K104: 4733 | L104: 11269 | M104: 0 | N104: 0 | O104: 0 | P104: 0 | Q104: 105.4 | R104: 0 | S104: 0 | T104: 818672 | U104: 359708 | V104: 856444 | W104: 0
A105: 2006-05-01 | B105: 14 | C105: ФИНАНСОВОЕ УПРАВЛЕНИЕ | D105: управление | E105: 0 | F105: 15 | G105: 0 | H105: 308.4 | I105: 0 | J105: 20560 | K105: 7100 | L105: 20800 | M105: 0 | N105: 0 | O105: 0 | P105: 0 | Q105: 31.1 | R105: 0 | S105: 0 | T105: 308400 | U105: 106500 | V105: 312000 | W105: 0
A106: 2006-05-01 | B106: 15 | C106: БЫКОВСКОЕ СЕЛЬСКОЕ ПОСЕЛЕНИЕ | D106: управление | E106: 0 | F106: 10 | G106: 0 | H106: 94.3 | I106: 21.6 | J106: 7270 | K106: 3692 | L106: 8796 | M106: 0 | N106: 0 | O106: 0 | P106: 0 | Q106: 11.1 | R106: 11.1 | S106: 0 | T106: 72700 | U106: 36920 | V106: 87960 | W106: 0
A107: 2006-05-01 | B107: 16 | C107: ОБЩЕОБРАЗОВАТЕЛЬНЫЕ ШКОЛЫ | D107: Образование | E107: 0 | F107: 959 | G107: 0 | H107: 4671.8 | I107: 107 | J107: 4810 | K107: 1810 | L107: 6026 | M107: 0 | N107: 0 | O107: 0 | P107: 0 | Q107: 438.3 | R107: 438.3 | S107: 0 | T107: 4612790 | U107: 1735790 | V107: 5778934 | W107: 0
A108: 2006-05-01 | B108: 17 | C108: В -БАЛЫКЛЕЙСКОЕ СЕЛЬСКОЕ ПОСЕЛЕНИЕ | D108: управление | E108: 0 | F108: 8 | G108: 0 | H108: 51.2 | I108: 0 | J108: 6399 | K108: 3693 | L108: 8023 | M108: 0 | N108: 0 | O108: 0 | P108: 0 | Q108: 5.6 | R108: 0 | S108: 0 | T108: 51192 | U108: 29544 | V108: 64184 | W108: 0
A109: 2006-05-01 | B109: 18 | C109: ПРИМОРСКОЕ СЕЛЬСКОЕ ПОСЕЛЕНИЕ | D109: управление | E109: 0 | F109: 18 | G109: 0 | H109: 86.7 | I109: 0 | J109: 4816 | K109: 3200 | L109: 5600 | M109: 0 | N109: 0 | O109: 0 | P109: 0 | Q109: 9.3 | R109: 0 | S109: 0 | T109: 86688 | U109: 57600 | V109: 100800 | W109: 0
A110: 2006-05-01 | B110: 19 | C110: ТУ ПО БЫКОВСКОМУ Р-НУ УСЗН АВО | D110: управление | E110: 0 | F110: 25 | G110: 0 | H110: 361.8 | I110: 0 | J110: 14472 | K110: 3300 | L110: 18000 | M110: 0 | N110: 0 | O110: 0 | P110: 0 | Q110: 44 | R110: 44 | S110: 0 | T110: 361800 | U110: 82500 | V110: 450000 | W110: 0
A111: 2006-05-01 | B111: 20 | C111: КУЛЬТУРА | D111: культура и искусство | E111: 0 | F111: 145 | G111: 0 | H111: 812.6 | I111: 49.7 | J111: 5261 | K111: 1880 | L111: 5604 | M111: 0 | N111: 0 | O111: 0 | P111: 0 | Q111: 90.4 | R111: 0 | S111: 0 | T111: 762845 | U111: 272600 | V111: 812580 | W111: 0
A112: 2006-05-01 | B112: 21 | C112: ООО "ЗЕЛЕНОВСКОЕ" | D112: жилищно - коммунальные услуги | E112: 0 | F112: 9 | G112: 0 | H112: 40.7 | I112: 0 | J112: 4522 | K112: 4143 | L112: 5855 | M112: 0 | N112: 0 | O112: 0 | P112: 0 | Q112: 4.9 | R112: 4.9 | S112: 0 | T112: 40698 | U112: 37287 | V112: 52695 | W112: 0
A113: 2006-06-01 | B113: 1 | C113: МУП БЫКОВСКАЯ ЦРА № 64 | D113: Розничная торговля, кроме торговли автотранспортными средствами мотоциклами; ремонт бытовых изделий | E113: 0 | F113: 29 | G113: 0 | H113: 100.6 | I113: 3.1 | J113: 3365 | K113: 2500 | L113: 6400 | M113: 0 | N113: 0 | O113: 0 | P113: 0 | Q113: 11.3 | R113: 11.3 | S113: 0 | T113: 97585 | U113: 72500 | V113: 185600 | W113: 0
A114: 2006-06-01 | B114: 2 | C114: ПО "КОЛОС" | D114: Розничная торговля, кроме торговли автотранспортными средствами мотоциклами; ремонт бытовых изделий | E114: 0 | F114: 57 | G114: 0 | H114: 242.8 | I114: 29.7 | J114: 3739 | K114: 3329 | L114: 7217 | M114: 0 | N114: 0 | O114: 0 | P114: 0 | Q114: 24.7 | R114: 0 | S114: 0 | T114: 213123 | U114: 189753 | V114: 411369 | W114: 0
A115: 2006-06-01 | B115: 3 | C115: ПО "ВОЛГА" | D115: общественное питание | E115: 0 | F115: 21 | G115: 2 | H115: 43.6 | I115: 0 | J115: 2294 | K115: 2500 | L115: 2000 | M115: 0 | N115: 0 | O115: 0 | P115: 0 | Q115: 3.8 | R115: 3.8 | S115: 0 | T115: 48174 | U115: 52500 | V115: 42000 | W115: 0
A116: 2006-06-01 | B116: 4 | C116: ОАО "БЫКОВОРАЙГАЗ" | D116: жилищно - коммунальные услуги | E116: 0 | F116: 69 | G116: 1 | H116: 330 | I116: 3 | J116: 4808 | K116: 4016 | L116: 6720 | M116: 580 | N116: 0 | O116: 1.8 | P116: 69 | Q116: 39.6 | R116: 294 | S116: 0 | T116: 331752 | U116: 277104 | V116: 463680 | W116: 124.2
A117: 2006-06-01 | B117: 5 | C117: ООО "РАССВЕТ" | D117: жилищно - коммунальные услуги | E117: 0 | F117: 24 | G117: 0 | H117: 98.4 | I117: 0 | J117: 4100 | K117: 3862 | L117: 5646 | M117: 0 | N117: 0 | O117: 0 | P117: 0 | Q117: 10.8 | R117: 10.8 | S117: 0 | T117: 98400 | U117: 92688 | V117: 135504 | W117: 0
A118: 2006-06-01 | B118: 6 | C118: МУП ВИКТОРИЯ | D118: Бытовое обслуживание | E118: 0 | F118: 20 | G118: 7 | H118: 60.4 | I118: 13.8 | J118: 2330 | K118: 1870 | L118: 3404 | M118: 0 | N118: 0 | O118: 0 | P118: 0 | Q118: 5.3 | R118: 5.3 | S118: 0 | T118: 46600 | U118: 37400 | V118: 68080 | W118: 0
A119: 2006-06-01 | B119: 7 | C119: БЫКОВСКАЯ ЦРБ | D119: Здравоохранение | E119: 0 | F119: 463 | G119: 0 | H119: 3576.9 | I119: 2.1 | J119: 7725 | K119: 3410 | L119: 9054 | M119: 0 | N119: 0 | O119: 0 | P119: 0 | Q119: 328.6 | R119: 328.6 | S119: 0 | T119: 3576675 | U119: 1578830 | V119: 4192002 | W119: 0
A120: 2006-06-01 | B120: 8 | C120: ООО "БЫКОВОРАЙКОМХОЗ" | D120: жилищно - коммунальные услуги | E120: 0 | F120: 87 | G120: 0 | H120: 383.2 | I120: 1.9 | J120: 4404 | K120: 4224 | L120: 5206 | M120: 0 | N120: 0 | O120: 0 | P120: 0 | Q120: 40.8 | R120: 40.8 | S120: 0 | T120: 383148 | U120: 367488 | V120: 452922 | W120: 0
A121: 2006-06-01 | B121: 9 | C121: Ч/П ЗАЙЦЕВА | D121: розничная торговля | E121: 0 | F121: 81 | G121: 4 | H121: 352.1 | I121: 33.4 | J121: 3935 | K121: 3360 | L121: 6157 | M121: 0 | N121: 0 | O121: 0 | P121: 0 | Q121: 38.2 | R121: 0 | S121: 0 | T121: 318735 | U121: 272160 | V121: 498717 | W121: 0
A122: 2006-06-01 | B122: 10 | C122: ГУЧ АГРАРНЫЙ ТЕХНИКУМ | D122: Образование | E122: 0 | F122: 134 | G122: 0 | H122: 328 | I122: 13.3 | J122: 2348 | K122: 2346 | L122: 3680 | M122: 0 | N122: 0 | O122: 0 | P122: 0 | Q122: 34.6 | R122: 34.6 | S122: 0 | T122: 314632 | U122: 314364 | V122: 493120 | W122: 0
A123: 2006-06-01 | B123: 11 | C123: СТАНЦИЯ ПО БОРЬБЕ С БОЛЕЗНЯМИ ЖИВОТНЫХ | D123: Сельское хозяйство | E123: 0 | F123: 46 | G123: 0 | H123: 314.7 | I123: 0 | J123: 6841 | K123: 1370 | L123: 6845 | M123: 0 | N123: 0 | O123: 0 | P123: 0 | Q123: 35.5 | R123: 35.5 | S123: 0 | T123: 314686 | U123: 63020 | V123: 314870 | W123: 0
A124: 2006-06-01 | B124: 12 | C124: БЫКОВСКИЙ ЛЕСХОЗ | D124: Лесное хозяйство | E124: 0 | F124: 25 | G124: 0 | H124: 59.3 | I124: 0 | J124: 2380 | K124: 1754 | L124: 2736 | M124: 0 | N124: 0 | O124: 0 | P124: 0 | Q124: 5.3 | R124: 0 | S124: 0 | T124: 59500 | U124: 43850 | V124: 68400 | W124: 0
A125: 2006-06-01 | B125: 13 | C125: АДМИНИСТРАЦИЯ БЫКОВСКОГО МУНИЦИПАЛЬНОГО РАЙОНА | D125: управление | E125: 0 | F125: 77 | G125: 0 | H125: 763.9 | I125: 14.2 | J125: 9736 | K125: 4733 | L125: 9921 | M125: 0 | N125: 0 | O125: 0 | P125: 0 | Q125: 95.4 | R125: 0 | S125: 0 | T125: 749672 | U125: 364441 | V125: 763917 | W125: 0
A126: 2006-06-01 | B126: 14 | C126: ФИНАНСОВОЕ УПРАВЛЕНИЕ | D126: управление | E126: 0 | F126: 15 | G126: 0 | H126: 305 | I126: 0 | J126: 20333 | K126: 6000 | L126: 23000 | M126: 0 | N126: 0 | O126: 0 | P126: 0 | Q126: 0 | R126: 0 | S126: 0 | T126: 304995 | U126: 90000 | V126: 345000 | W126: 0
A127: 2006-06-01 | B127: 15 | C127: БЫКОВСКОЕ СЕЛЬСКОЕ ПОСЕЛЕНИЕ | D127: управление | E127: 0 | F127: 21 | G127: 1 | H127: 116.8 | I127: 0 | J127: 5840 | K127: 5800 | L127: 11900 | M127: 0 | N127: 0 | O127: 0 | P127: 0 | Q127: 10.8 | R127: 10.8 | S127: 0 | T127: 122640 | U127: 121800 | V127: 249900 | W127: 0
A128: 2006-06-01 | B128: 16 | C128: ОБЩЕОБРАЗОВАТЕЛЬНЫЕ ШКОЛЫ | D128: Образование | E128: 0 | F128: 958 | G128: 0 | H128: 5169.9 | I128: 37.5 | J128: 5357 | K128: 1900 | L128: 6836 | M128: 0 | N128: 0 | O128: 0 | P128: 0 | Q128: 485.5 | R128: 485.5 | S128: 0 | T128: 5132006 | U128: 1820200 | V128: 6548888 | W128: 0
A129: 2006-06-01 | B129: 17 | C129: В -БАЛЫКЛЕЙСКОЕ СЕЛЬСКОЕ ПОСЕЛЕНИЕ | D129: управление | E129: 0 | F129: 8 | G129: 0 | H129: 54.9 | I129: 0 | J129: 6869 | K129: 3693 | L129: 8774 | M129: 0 | N129: 0 | O129: 0 | P129: 0 | Q129: 6.4 | R129: 6.4 | S129: 0 | T129: 54952 | U129: 29544 | V129: 70192 | W129: 0
A130: 2006-06-01 | B130: 18 | C130: ПРИМОРСКОЕ СЕЛЬСКОЕ ПОСЕЛЕНИЕ | D130: управление | E130: 0 | F130: 18 | G130: 0 | H130: 88.7 | I130: 0 | J130: 4900 | K130: 3700 | L130: 5800 | M130: 0 | N130: 0 | O130: 0 | P130: 0 | Q130: 9.2 | R130: 9.2 | S130: 0 | T130: 88200 | U130: 66600 | V130: 104400 | W130: 0
A131: 2006-06-01 | B131: 19 | C131: ТУ ПО БЫКОВСКОМУ Р-НУ УСЗН АВО | D131: управление | E131: 0 | F131: 25 | G131: 0 | H131: 400.7 | I131: 0 | J131: 16027 | K131: 3289 | L131: 20049 | M131: 0 | N131: 0 | O131: 0 | P131: 0 | Q131: 49.4 | R131: 49.4 | S131: 0 | T131: 400675 | U131: 82225 | V131: 501225 | W131: 0
A132: 2006-06-01 | B132: 20 | C132: КУЛЬТУРА | D132: культура и искусство | E132: 0 | F132: 145 | G132: 0 | H132: 621.7 | I132: 51.2 | J132: 3934 | K132: 1880 | L132: 4287 | M132: 0 | N132: 0 | O132: 0 | P132: 0 | Q132: 57.3 | R132: 57.3 | S132: 0 | T132: 570430 | U132: 272600 | V132: 621615 | W132: 0
A133: 2006-06-01 | B133: 21 | C133: ООО "ЗЕЛЕНОВСКОЕ" | D133: жилищно - коммунальные услуги | E133: 0 | F133: 9 | G133: 0 | H133: 41.9 | I133: 3.1 | J133: 4311 | K133: 4300 | L133: 5855 | M133: 0 | N133: 0 | O133: 0 | P133: 0 | Q133: 4.1 | R133: 4.1 | S133: 0 | T133: 38799 | U133: 38700 | V133: 52695 | W133: 0
A134: 2006-07-01 | B134: 1 | C134: МУП БЫКОВСКАЯ ЦРА № 64 | D134: Розничная торговля, кроме торговли автотранспортными средствами мотоциклами; ремонт бытовых изделий | E134: 0 | F134: 20 | G134: 0 | H134: 127.4 | I134: 11.7 | J134: 5785 | K134: 2500 | L134: 6900 | M134: 0 | N134: 0 | O134: 0 | P134: 0 | Q134: 15.3 | R134: 0 | S134: 0 | T134: 115700 | U134: 50000 | V134: 138000 | W134: 0
A135: 2006-07-01 | B135: 2 | C135: ПО "КОЛОС" | D135: Розничная торговля, кроме торговли автотранспортными средствами мотоциклами; ремонт бытовых изделий | E135: 0 | F135: 58 | G135: 2 | H135: 246 | I135: 34 | J135: 3655 | K135: 3225 | L135: 7917 | M135: 0 | N135: 0 | O135: 0 | P135: 0 | Q135: 25.9 | R135: 0 | S135: 0 | T135: 211990 | U135: 187050 | V135: 459186 | W135: 0
A136: 2006-07-01 | B136: 3 | C136: ПО "ВОЛГА" | D136: общественное питание | E136: 0 | F136: 21 | G136: 2 | H136: 43.6 | I136: 0 | J136: 2294 | K136: 2500 | L136: 2000 | M136: 0 | N136: 0 | O136: 0 | P136: 0 | Q136: 3.5 | R136: 3.5 | S136: 0 | T136: 48174 | U136: 52500 | V136: 42000 | W136: 0
A137: 2006-07-01 | B137: 4 | C137: ОАО "БЫКОВОРАЙГАЗ" | D137: жилищно - коммунальные услуги | E137: 0 | F137: 72 | G137: 0 | H137: 346.8 | I137: 8.1 | J137: 4816 | K137: 3995 | L137: 7941 | M137: 236.7 | N137: 0 | O137: 1 | P137: 72 | Q137: 44.5 | R137: 150 | S137: 0 | T137: 346752 | U137: 287640 | V137: 571752 | W137: 72
A138: 2006-07-01 | B138: 5 | C138: ООО "РАССВЕТ" | D138: жилищно - коммунальные услуги | E138: 0 | F138: 24 | G138: 2 | H138: 101.5 | I138: 0 | J138: 4229 | K138: 4000 | L138: 5600 | M138: 0 | N138: 0 | O138: 0 | P138: 0 | Q138: 11.3 | R138: 0 | S138: 0 | T138: 101496 | U138: 96000 | V138: 134400 | W138: 0
A139: 2006-07-01 | B139: 6 | C139: МУП ВИКТОРИЯ | D139: Бытовое обслуживание | E139: 0 | F139: 21 | G139: 7 | H139: 79.2 | I139: 28.6 | J139: 2410 | K139: 1700 | L139: 3713 | M139: 0 | N139: 0 | O139: 0 | P139: 0 | Q139: 8.3 | R139: 8.3 | S139: 0 | T139: 50610 | U139: 35700 | V139: 77973 | W139: 0
A140: 2006-07-01 | B140: 7 | C140: БЫКОВСКАЯ ЦРБ | D140: Здравоохранение | E140: 0 | F140: 463 | G140: 0 | H140: 2872.7 | I140: 2.2 | J140: 6205 | K140: 3400 | L140: 6987 | M140: 0 | N140: 0 | O140: 0 | P140: 0 | Q140: 355.7 | R140: 0 | S140: 0 | T140: 2872915 | U140: 1574200 | V140: 3234981 | W140: 0
A141: 2006-07-01 | B141: 8 | C141: ООО "БЫКОВОРАЙКОМХОЗ" | D141: жилищно - коммунальные услуги | E141: 0 | F141: 88 | G141: 0 | H141: 370.3 | I141: 1.9 | J141: 4208 | K141: 3948 | L141: 5472 | M141: 65 | N141: 65 | O141: 0.8 | P141: 88 | Q141: 40.8 | R141: 82.9 | S141: 0 | T141: 370304 | U141: 347424 | V141: 481536 | W141: 70.4
A142: 2006-07-01 | B142: 9 | C142: Ч/П ЗАЙЦЕВА | D142: розничная торговля | E142: 0 | F142: 82 | G142: 2 | H142: 325.7 | I142: 30.7 | J142: 3598 | K142: 3434 | L142: 4922 | M142: 0 | N142: 0 | O142: 0 | P142: 0 | Q142: 37.1 | R142: 0 | S142: 0 | T142: 295036 | U142: 281588 | V142: 403604 | W142: 0
A143: 2006-07-01 | B143: 10 | C143: ГУЧ АГРАРНЫЙ ТЕХНИКУМ | D143: Образование | E143: 0 | F143: 132 | G143: 0 | H143: 550.9 | I143: 0 | J143: 4173 | K143: 2346 | L143: 4173 | M143: 0 | N143: 0 | O143: 0 | P143: 0 | Q143: 63.2 | R143: 0 | S143: 0 | T143: 550836 | U143: 309672 | V143: 550836 | W143: 0
A144: 2006-07-01 | B144: 11 | C144: СТАНЦИЯ ПО БОРЬБЕ С БОЛЕЗНЯМИ ЖИВОТНЫХ | D144: Сельское хозяйство | E144: 0 | F144: 46 | G144: 0 | H144: 314.7 | I144: 0 | J144: 6841 | K144: 1370 | L144: 6845 | M144: 0 | N144: 0 | O144: 0 | P144: 0 | Q144: 35.5 | R144: 35.5 | S144: 0 | T144: 314686 | U144: 63020 | V144: 314870 | W144: 0
A145: 2006-07-01 | B145: 12 | C145: БЫКОВСКИЙ ЛЕСХОЗ | D145: Лесное хозяйство | E145: 0 | F145: 26 | G145: 0 | H145: 83.8 | I145: 0 | J145: 3223 | K145: 3100 | L145: 3598 | M145: 0 | N145: 0 | O145: 0 | P145: 0 | Q145: 8.4 | R145: 0 | S145: 0 | T145: 83798 | U145: 80600 | V145: 93548 | W145: 0
A146: 2006-07-01 | B146: 13 | C146: АДМИНИСТРАЦИЯ БЫКОВСКОГО МУНИЦИПАЛЬНОГО РАЙОНА | D146: управление | E146: 0 | F146: 78 | G146: 0 | H146: 299.3 | I146: 0 | J146: 20.7 | K146: 3572 | L146: 3837 | M146: 0 | N146: 0 | O146: 0 | P146: 0 | Q146: 142.1 | R146: 0 | S146: 0 | T146: 1614.6 | U146: 278616 | V146: 299286 | W146: 0
A147: 2006-07-01 | B147: 14 | C147: ФИНАНСОВОЕ УПРАВЛЕНИЕ | D147: управление | E147: 0 | F147: 15 | G147: 0 | H147: 221.5 | I147: 0 | J147: 14767 | K147: 6400 | L147: 16500 | M147: 0 | N147: 0 | O147: 0 | P147: 0 | Q147: 21.6 | R147: 21.6 | S147: 0 | T147: 221505 | U147: 96000 | V147: 247500 | W147: 0
A148: 2006-07-01 | B148: 15 | C148: БЫКОВСКОЕ СЕЛЬСКОЕ ПОСЕЛЕНИЕ | D148: управление | E148: 0 | F148: 19 | G148: 0 | H148: 95.8 | I148: 0 | J148: 5042 | K148: 1751 | L148: 8300 | M148: 0 | N148: 0 | O148: 0 | P148: 0 | Q148: 11.4 | R148: 0 | S148: =E148*F148 -> 0 | T148: =J148*$F148 -> 95798 | U148: =K148*$F148 -> 33269 | V148: =L148*$F148 -> 157700 | W148: =O148*$F148 -> 0
A149: 2006-07-01 | B149: 16 | C149: ОБЩЕОБРАЗОВАТЕЛЬНЫЕ ШКОЛЫ | D149: Образование | E149: 0 | F149: 958 | G149: 0 | H149: 4119 | I149: 30.1 | J149: 4269 | K149: 1900 | L149: 5282 | M149: 0 | N149: 0 | O149: 0 | P149: 0 | Q149: 370.8 | R149: 370.8 | S149: 0 | T149: 4089702 | U149: 1820200 | V149: 5060156 | W149: 0
A150: 2006-07-01 | B150: 17 | C150: В -БАЛЫКЛЕЙСКОЕ СЕЛЬСКОЕ ПОСЕЛЕНИЕ | D150: управление | E150: 0 | F150: 8 | G150: 0 | H150: 61.5 | I150: 0 | J150: 7695 | K150: 4817 | L150: 9421 | M150: 0 | N150: 0 | O150: 0 | P150: 0 | Q150: 6.5 | R150: 6.5 | S150: 0 | T150: 61560 | U150: 38536 | V150: 75368 | W150: 0
A151: 2006-07-01 | B151: 18 | C151: ПРИМОРСКОЕ СЕЛЬСКОЕ ПОСЕЛЕНИЕ | D151: управление | E151: 0 | F151: 18 | G151: 0 | H151: 93.9 | I151: 0 | J151: 5200 | K151: 3800 | L151: 6500 | M151: 0 | N151: 0 | O151: 0 | P151: 0 | Q151: 12.2 | R151: 12.2 | S151: 0 | T151: 93600 | U151: 68400 | V151: 117000 | W151: 0
A152: 2006-07-01 | B152: 19 | C152: ТУ ПО БЫКОВСКОМУ Р-НУ УСЗН АВО | D152: управление | E152: 0 | F152: 25 | G152: 0 | H152: 400.7 | I152: 0 | J152: 16027 | K152: 3289 | L152: 20049 | M152: 0 | N152: 0 | O152: 0 | P152: 0 | Q152: 49.2 | R152: 49.2 | S152: 0 | T152: 400675 | U152: 82225 | V152: 501225 | W152: 0
A153: 2006-07-01 | B153: 20 | C153: КУЛЬТУРА | D153: культура и искусство | E153: 0 | F153: 142 | G153: 0 | H153: 598.2 | I153: 42.6 | J153: 3913 | K153: 1880 | L153: 4213 | M153: 0 | N153: 0 | O153: 0 | P153: 0 | Q153: 66 | R153: 0 | S153: 0 | T153: 555646 | U153: 266960 | V153: 598246 | W153: 0
A154: 2006-07-01 | B154: 21 | C154: ООО "ЗЕЛЕНОВСКОЕ" | D154: жилищно - коммунальные услуги | E154: 0 | F154: 9 | G154: 0 | H154: 41.9 | I154: 3.1 | J154: 4311 | K154: 4300 | L154: 5855 | M154: 0 | N154: 0 | O154: 0 | P154: 0 | Q154: 4.1 | R154: 4.1 | S154: 0 | T154: 38799 | U154: 38700 | V154: 52695 | W154: 0
A155: 2006-08-01 | B155: 1 | C155: МУП БЫКОВСКАЯ ЦРА № 64 | D155: Розничная торговля, кроме торговли автотранспортными средствами мотоциклами; ремонт бытовых изделий | E155: 0 | F155: 28 | G155: 0 | H155: 95.4 | I155: 8.1 | J155: 3118 | K155: 2500 | L155: 6000 | M155: 0 | N155: 0 | O155: 0 | P155: 0 | Q155: 11 | R155: 0 | S155: 0 | T155: 87304 | U155: 70000 | V155: 168000 | W155: 0
A156: 2006-08-01 | B156: 2 | C156: ПО "КОЛОС" | D156: Розничная торговля, кроме торговли автотранспортными средствами мотоциклами; ремонт бытовых изделий | E156: 0 | F156: 63 | G156: 1 | H156: 273.2 | I156: 41.1 | J156: 3864 | K156: 3395 | L156: 6433 | M156: 0 | N156: 0 | O156: 0 | P156: 0 | Q156: 29.3 | R156: 0 | S156: 0 | T156: 243432 | U156: 213885 | V156: 405279 | W156: 0
A157: 2006-08-01 | B157: 3 | C157: ПО "ВОЛГА" | D157: общественное питание | E157: 0 | F157: 22 | G157: 0 | H157: 52 | I157: 0 | J157: 2364 | K157: 2000 | L157: 2500 | M157: 0 | N157: 0 | O157: 0 | P157: 0 | Q157: 5 | R157: 0 | S157: 0 | T157: 52008 | U157: 44000 | V157: 55000 | W157: 0
A158: 2006-08-01 | B158: 4 | C158: ОАО "БЫКОВОРАЙГАЗ" | D158: жилищно - коммунальные услуги | E158: 0 | F158: 70 | G158: 0 | H158: 439.8 | I158: 2.5 | J158: 6247 | K158: 5358 | L158: 8802 | M158: 177.3 | N158: 0 | O158: 1 | P158: 70 | Q158: 57.1 | R158: 0 | S158: 0 | T158: 437290 | U158: 375060 | V158: 616140 | W158: 70
A159: 2006-08-01 | B159: 5 | C159: ООО "РАССВЕТ" | D159: жилищно - коммунальные услуги | E159: 0 | F159: 24 | G159: 1 | H159: 410.8 | I159: 0 | J159: 4260 | K159: 3862 | L159: 5616 | M159: 0 | N159: 0 | O159: 0 | P159: 0 | Q159: 10.8 | R159: 10.8 | S159: 0 | T159: 102240 | U159: 92688 | V159: 134784 | W159: 0
A160: 2006-08-01 | B160: 6 | C160: МУП ВИКТОРИЯ | D160: Бытовое обслуживание | E160: 0 | F160: 22 | G160: 7 | H160: 65.9 | I160: 14.3 | J160: 2345 | K160: 2094 | L160: 3208 | M160: 0 | N160: 0 | O160: 0 | P160: 0 | Q160: 6.2 | R160: 0 | S160: 0 | T160: 51590 | U160: 46068 | V160: 70576 | W160: 0
A161: 2006-08-01 | B161: 7 | C161: БЫКОВСКАЯ ЦРБ | D161: Здравоохранение | E161: 0 | F161: 462 | G161: 0 | H161: 3126.8 | I161: 2.2 | J161: 6768 | K161: 3358 | L161: 7846 | M161: 0 | N161: 0 | O161: 0 | P161: 0 | Q161: 387.5 | R161: 387.5 | S161: 0 | T161: 3126816 | U161: 1551396 | V161: 3624852 | W161: 0
A162: 2006-08-01 | B162: 8 | C162: ООО "БЫКОВОРАЙКОМХОЗ" | D162: жилищно - коммунальные услуги | E162: 0 | F162: 85 | G162: 0 | H162: 387.8 | I162: 2 | J162: 4562 | K162: 4261 | L162: 6096 | M162: 266.6 | N162: 266.6 | O162: 1 | P162: 88 | Q162: 43.2 | R162: 228.3 | S162: 0 | T162: 387770 | U162: 362185 | V162: 518160 | W162: 85
A163: 2006-08-01 | B163: 9 | C163: Ч/П ЗАЙЦЕВА | D163: розничная торговля | E163: 0 | F163: 76 | G163: 7 | H163: 331.6 | I163: 28 | J163: 3995 | K163: 3951 | L163: 4322 | M163: 0 | N163: 0 | O163: 0 | P163: 0 | Q163: 39.8 | R163: 0 | S163: 0 | T163: 303620 | U163: 300276 | V163: 328472 | W163: 0
A164: 2006-08-01 | B164: 10 | C164: ГУЧ АГРАРНЫЙ ТЕХНИКУМ | D164: Образование | E164: 0 | F164: 118 | G164: 0 | H164: 204 | I164: 0 | J164: 1729 | K164: 1728 | L164: 3680 | M164: 0 | N164: 0 | O164: 0 | P164: 0 | Q164: 22 | R164: 0 | S164: 0 | T164: 204022 | U164: 203904 | V164: 434240 | W164: 0
A165: 2006-08-01 | B165: 11 | C165: СТАНЦИЯ ПО БОРЬБЕ С БОЛЕЗНЯМИ ЖИВОТНЫХ | D165: Сельское хозяйство | E165: 0 | F165: 46 | G165: 0 | H165: 314.7 | I165: 0 | J165: 6841 | K165: 1370 | L165: 6845 | M165: 0 | N165: 0 | O165: 0 | P165: 0 | Q165: 35.5 | R165: 35.5 | S165: 0 | T165: 314686 | U165: 63020 | V165: 314870 | W165: 0
A166: 2006-08-01 | B166: 12 | C166: БЫКОВСКИЙ ЛЕСХОЗ | D166: Лесное хозяйство | E166: 0 | F166: 25 | G166: 0 | H166: 67.5 | I166: 0 | J166: 2701 | K166: 2503 | L166: 2915 | M166: 0 | N166: 0 | O166: 0 | P166: 0 | Q166: 9.7 | R166: 0 | S166: 0 | T166: 67525 | U166: 62575 | V166: 72875 | W166: 0
A167: 2006-08-01 | B167: 13 | C167: АДМИНИСТРАЦИЯ БЫКОВСКОГО МУНИЦИПАЛЬНОГО РАЙОНА | D167: управление | E167: 0 | F167: 93 | G167: 0 | H167: 794.8 | I167: 14 | J167: 8396 | K167: 4733 | L167: 8546 | M167: 0 | N167: 0 | O167: 0 | P167: 0 | Q167: 8.8 | R167: 0 | S167: 0 | T167: 780828 | U167: 440169 | V167: 794778 | W167: 0
A168: 2006-08-01 | B168: 14 | C168: ФИНАНСОВОЕ УПРАВЛЕНИЕ | D168: управление | E168: 0 | F168: 16 | G168: 0 | H168: 321.4 | I168: 0 | J168: 20088 | K168: 6870 | L168: 21900 | M168: 0 | N168: 0 | O168: 0 | P168: 0 | Q168: 41.7 | R168: 0 | S168: 0 | T168: 321408 | U168: 109920 | V168: 350400 | W168: 0
A169: 2006-08-01 | B169: 15 | C169: БЫКОВСКОЕ СЕЛЬСКОЕ ПОСЕЛЕНИЕ | D169: управление | E169: 0 | F169: 10 | G169: 0 | H169: 99 | I169: 15.8 | J169: 8320 | K169: 3393 | L169: 10362 | M169: 0 | N169: 0 | O169: 0 | P169: 0 | Q169: 12.1 | R169: 0 | S169: 0 | T169: 83200 | U169: 33930 | V169: 103620 | W169: 0
A170: 2006-08-01 | B170: 16 | C170: ОБЩЕОБРАЗОВАТЕЛЬНЫЕ ШКОЛЫ | D170: Образование | E170: 0 | F170: 955 | G170: 0 | H170: 5831.1 | I170: 15.9 | J170: 6112 | K170: 1918 | L170: 7774 | M170: 0 | N170: 0 | O170: 0 | P170: 0 | Q170: 526.8 | R170: 526.8 | S170: 0 | T170: 5836960 | U170: 1831690 | V170: 7424170 | W170: 0
A171: 2006-08-01 | B171: 17 | C171: В -БАЛЫКЛЕЙСКОЕ СЕЛЬСКОЕ ПОСЕЛЕНИЕ | D171: управление | E171: 0 | F171: 8 | G171: 0 | H171: 61.5 | I171: 0 | J171: 7695 | K171: 4817 | L171: 9421 | M171: 0 | N171: 0 | O171: 0 | P171: 0 | Q171: 6.5 | R171: 0 | S171: 0 | T171: 61560 | U171: 38536 | V171: 75368 | W171: 0
A172: 2006-08-01 | B172: 18 | C172: ПРИМОРСКОЕ СЕЛЬСКОЕ ПОСЕЛЕНИЕ | D172: управление | E172: 0 | F172: 18 | G172: 0 | H172: 91 | I172: 0 | J172: 5000 | K172: 3700 | L172: 6001 | M172: 0 | N172: 0 | O172: 0 | P172: 0 | Q172: 11 | R172: 0 | S172: 0 | T172: 90000 | U172: 66600 | V172: 108018 | W172: 0
A173: 2006-08-01 | B173: 19 | C173: ТУ ПО БЫКОВСКОМУ Р-НУ УСЗН АВО | D173: управление | E173: 0 | F173: 25 | G173: 0 | H173: 362.6 | I173: 0 | J173: 14504 | K173: 4034 | L173: 17808 | M173: 0 | N173: 0 | O173: 0 | P173: 0 | Q173: 0 | R173: 0 | S173: 0 | T173: 362600 | U173: 100850 | V173: 445200 | W173: 0
A174: 2006-08-01 | B174: 20 | C174: КУЛЬТУРА | D174: культура и искусство | E174: 0 | F174: 142 | G174: 0 | H174: 499.6 | I174: 41.1 | J174: 3229 | K174: 1880 | L174: 3518 | M174: 0 | N174: 0 | O174: 0 | P174: 0 | Q174: 54.1 | R174: 0 | S174: 0 | T174: 458518 | U174: 266960 | V174: 499556 | W174: 0
A175: 2006-08-01 | B175: 21 | C175: ООО "ЗЕЛЕНОВСКОЕ" | D175: жилищно - коммунальные услуги | E175: 0 | F175: 9 | G175: 0 | H175: 41.9 | I175: 3.1 | J175: 4311 | K175: 4300 | L175: 5855 | M175: 0 | N175: 0 | O175: 0 | P175: 0 | Q175: 4.1 | R175: 4.1 | S175: 0 | T175: 38799 | U175: 38700 | V175: 52695 | W175: 0
A176: 2006-09-01 | B176: 1 | C176: МУП БЫКОВСКАЯ ЦРА № 64 | D176: Розничная торговля, кроме торговли автотранспортными средствами мотоциклами; ремонт бытовых изделий | E176: 0 | F176: 29 | G176: 10 | H176: 89.6 | I176: 5.9 | J176: 3089 | K176: 2000 | L176: 6200 | M176: 0 | N176: 0 | O176: 0 | P176: 0 | Q176: 10.9 | R176: 0 | S176: 0 | T176: 89581 | U176: 58000 | V176: 179800 | W176: 0
A177: 2006-09-01 | B177: 2 | C177: ПО "КОЛОС" | D177: Розничная торговля, кроме торговли автотранспортными средствами мотоциклами; ремонт бытовых изделий | E177: 0 | F177: 59 | G177: 0 | H177: 255.1 | I177: 41.5 | J177: 3620 | K177: 3256 | L177: 7560 | M177: 0 | N177: 0 | O177: 0 | P177: 0 | Q177: 30.6 | R177: 0 | S177: 0 | T177: 213580 | U177: 192104 | V177: 446040 | W177: 0
A178: 2006-09-01 | B178: 3 | C178: ПО "ВОЛГА" | D178: общественное питание | E178: 0 | F178: 22 | G178: 0 | H178: 52 | I178: 0 | J178: 2364 | K178: 2000 | L178: 2500 | M178: 0 | N178: 0 | O178: 0 | P178: 0 | Q178: 5 | R178: 0 | S178: 0 | T178: 52008 | U178: 44000 | V178: 55000 | W178: 0
A179: 2006-09-01 | B179: 4 | C179: ОАО "БЫКОВОРАЙГАЗ" | D179: жилищно - коммунальные услуги | E179: 0 | F179: 71 | G179: 0 | H179: 349.3 | I179: 0 | J179: 4900 | K179: 4280 | L179: 6803 | M179: 249.6 | N179: 0 | O179: 1 | P179: 71 | Q179: 45 | R179: 0 | S179: 0 | T179: 347900 | U179: 303880 | V179: 483013 | W179: 71
A180: 2006-09-01 | B180: 5 | C180: ООО "РАССВЕТ" | D180: жилищно - коммунальные услуги | E180: 0 | F180: 24 | G180: 1 | H180: 102.2 | I180: 0 | J180: 4260 | K180: 3862 | L180: 5616 | M180: 0 | N180: 0 | O180: 0 | P180: 0 | Q180: 10.8 | R180: 0 | S180: 0 | T180: 102240 | U180: 92688 | V180: 134784 | W180: 0
A181: 2006-09-01 | B181: 6 | C181: МУП ВИКТОРИЯ | D181: Бытовое обслуживание | E181: 0 | F181: 23 | G181: 7 | H181: 73.5 | I181: 19.5 | J181: 2348 | K181: 1970 | L181: 3460 | M181: 0 | N181: 0 | O181: 0 | P181: 0 | Q181: 7.1 | R181: 0 | S181: 0 | T181: 54004 | U181: 45310 | V181: 79580 | W181: 0
A182: 2006-09-01 | B182: 7 | C182: БЫКОВСКАЯ ЦРБ | D182: Здравоохранение | E182: 0 | F182: 464 | G182: 0 | H182: 2782.2 | I182: 0 | J182: 5996 | K182: 3358 | L182: 7846 | M182: 0 | N182: 0 | O182: 0 | P182: 0 | Q182: 347.2 | R182: 0 | S182: 0 | T182: 2782144 | U182: 1558112 | V182: 3640544 | W182: 0
A183: 2006-09-01 | B183: 8 | C183: ООО "БЫКОВОРАЙКОМХОЗ" | D183: жилищно - коммунальные услуги | E183: 0 | F183: 84 | G183: 0 | H183: 407.7 | I183: 1.9 | J183: 4854 | K183: 4215 | L183: 8683 | M183: 177.9 | N183: 177.9 | O183: 0.4 | P183: 84 | Q183: 43.2 | R183: 212.1 | S183: 0 | T183: 407736 | U183: 354060 | V183: 729372 | W183: 33.6
A184: 2006-09-01 | B184: 9 | C184: Ч/П ЗАЙЦЕВА | D184: розничная торговля | E184: 0 | F184: 78 | G184: 0 | H184: 351.4 | I184: 33.1 | J184: 4081 | K184: 3966 | L184: 5088 | M184: 0 | N184: 0 | O184: 0 | P184: 0 | Q184: 41.5 | R184: 0 | S184: 0 | T184: 318318 | U184: 309348 | V184: 396864 | W184: 0
A185: 2006-09-01 | B185: 10 | C185: ГУЧ АГРАРНЫЙ ТЕХНИКУМ | D185: Образование | E185: 0 | F185: 118 | G185: 0 | H185: 204 | I185: 0 | J185: 1729 | K185: 1728 | L185: 3680 | M185: 0 | N185: 0 | O185: 0 | P185: 0 | Q185: 22 | R185: 0 | S185: 0 | T185: 204022 | U185: 203904 | V185: 434240 | W185: 0
A186: 2006-09-01 | B186: 11 | C186: СТАНЦИЯ ПО БОРЬБЕ С БОЛЕЗНЯМИ ЖИВОТНЫХ | D186: Сельское хозяйство | E186: 0 | F186: 46 | G186: 0 | H186: 314.7 | I186: 0 | J186: 6841 | K186: 1370 | L186: 6845 | M186: 0 | N186: 0 | O186: 0 | P186: 0 | Q186: 35.5 | R186: 0 | S186: 0 | T186: 314686 | U186: 63020 | V186: 314870 | W186: 0
A187: 2006-09-01 | B187: 12 | C187: БЫКОВСКИЙ ЛЕСХОЗ | D187: Лесное хозяйство | E187: 0 | F187: 26 | G187: 0 | H187: 85.3 | I187: 0 | J187: 3281 | K187: 2715 | L187: 4100 | M187: 0 | N187: 0 | O187: 0 | P187: 0 | Q187: 9.6 | R187: 0 | S187: 0 | T187: 85306 | U187: 70590 | V187: 106600 | W187: 0
A188: 2006-09-01 | B188: 13 | C188: АДМИНИСТРАЦИЯ БЫКОВСКОГО МУНИЦИПАЛЬНОГО РАЙОНА | D188: управление | E188: 0 | F188: 93 | G188: 0 | H188: 736.2 | I188: 9 | J188: 7819 | K188: 4733 | L188: 7916 | M188: 0 | N188: 0 | O188: 0 | P188: 0 | Q188: 54.2 | R188: 0 | S188: 0 | T188: 727167 | U188: 440169 | V188: 736188 | W188: 0
A189: 2006-09-01 | B189: 14 | C189: ФИНАНСОВОЕ УПРАВЛЕНИЕ | D189: управление | E189: 0 | F189: 16 | G189: 0 | H189: 308.7 | I189: 0 | J189: 19294 | K189: 6100 | L189: 21200 | M189: 0 | N189: 0 | O189: 0 | P189: 0 | Q189: 37.2 | R189: 0 | S189: 0 | T189: 308704 | U189: 97600 | V189: 339200 | W189: 0
A190: 2006-09-01 | B190: 15 | C190: БЫКОВСКОЕ СЕЛЬСКОЕ ПОСЕЛЕНИЕ | D190: управление | E190: 0 | F190: 10 | G190: 0 | H190: 99 | I190: 15.8 | J190: 8320 | K190: 3393 | L190: 10362 | M190: 0 | N190: 0 | O190: 0 | P190: 0 | Q190: 12.1 | R190: 0 | S190: 0 | T190: 83200 | U190: 33930 | V190: 103620 | W190: 0
A191: 2006-09-01 | B191: 16 | C191: ОБЩЕОБРАЗОВАТЕЛЬНЫЕ ШКОЛЫ | D191: Образование | E191: 0 | F191: 985 | G191: 0 | H191: 4153.4 | I191: 53.3 | J191: 4163 | K191: 1917 | L191: 5090 | M191: 0 | N191: 0 | O191: 0 | P191: 0 | Q191: 368.2 | R191: 0 | S191: 0 | T191: 4100555 | U191: 1888245 | V191: 5013650 | W191: 0
A192: 2006-09-01 | B192: 17 | C192: В -БАЛЫКЛЕЙСКОЕ СЕЛЬСКОЕ ПОСЕЛЕНИЕ | D192: управление | E192: 0 | F192: 8 | G192: 0 | H192: 61.5 | I192: 0 | J192: 7695 | K192: 4817 | L192: 9421 | M192: 0 | N192: 0 | O192: 0 | P192: 0 | Q192: 6.5 | R192: 0 | S192: 0 | T192: 61560 | U192: 38536 | V192: 75368 | W192: 0
A193: 2006-09-01 | B193: 18 | C193: ПРИМОРСКОЕ СЕЛЬСКОЕ ПОСЕЛЕНИЕ | D193: управление | E193: 0 | F193: 18 | G193: 0 | H193: 91 | I193: 0 | J193: 5000 | K193: 3700 | L193: 6010 | M193: 0 | N193: 0 | O193: 0 | P193: 0 | Q193: 11 | R193: 0 | S193: 0 | T193: 90000 | U193: 66600 | V193: 108180 | W193: 0
A194: 2006-09-01 | B194: 19 | C194: ТУ ПО БЫКОВСКОМУ Р-НУ УСЗН АВО | D194: управление | E194: 0 | F194: 25 | G194: 0 | H194: 362.6 | I194: 0 | J194: 14504 | K194: 4034 | L194: 17808 | M194: 0 | N194: 0 | O194: 0 | P194: 0 | Q194: 47 | R194: 0 | S194: 0 | T194: 362600 | U194: 100850 | V194: 445200 | W194: 0
A195: 2006-09-01 | B195: 20 | C195: КУЛЬТУРА | D195: культура и искусство | E195: 0 | F195: 142 | G195: 0 | H195: 556 | I195: 50.6 | J195: 3559 | K195: 1880 | L195: 3915 | M195: 0 | N195: 0 | O195: 0 | P195: 0 | Q195: 62.7 | R195: 0 | S195: 0 | T195: 505378 | U195: 266960 | V195: 555930 | W195: 0
A196: 2006-09-01 | B196: 21 | C196: ООО "ЗЕЛЕНОВСКОЕ" | D196: жилищно - коммунальные услуги | E196: 0 | F196: 9 | G196: 0 | H196: 41.9 | I196: 3.1 | J196: 4311 | K196: 4300 | L196: 5855 | M196: 0 | N196: 0 | O196: 0 | P196: 0 | Q196: 4.1 | R196: 0 | S196: 0 | T196: 38799 | U196: 38700 | V196: 52695 | W196: 0
A197: 2006-11-01 | B197: 1 | C197: МУП БЫКОВСКАЯ ЦРА № 64 | D197: Розничная торговля, кроме торговли автотранспортными средствами мотоциклами; ремонт бытовых изделий | E197: 0 | F197: 29 | G197: 0 | H197: 89.7 | I197: 5.9 | J197: 2889 | K197: 1900 | L197: 6000 | M197: 0 | N197: 0 | O197: 0 | P197: 0 | Q197: 10.1 | R197: 10.1 | S197: 0 | T197: 83781 | U197: 55100 | V197: 174000 | W197: 0
A198: 2006-11-01 | B198: 2 | C198: ПО "КОЛОС" | D198: Розничная торговля, кроме торговли автотранспортными средствами мотоциклами; ремонт бытовых изделий | E198: 0 | F198: 71 | G198: 0 | H198: 249.7 | I198: 32.5 | J198: 3059 | K198: 3200 | L198: 7940 | M198: 0 | N198: 0 | O198: 0 | P198: 0 | Q198: 29.4 | R198: 29.4 | S198: 0 | T198: 217189 | U198: 227200 | V198: 563740 | W198: 0
A199: 2006-11-01 | B199: 3 | C199: ПО "ВОЛГА" | D199: общественное питание | E199: 0 | F199: 22 | G199: 0 | H199: 52 | I199: 0 | J199: 2364 | K199: 2000 | L199: 2500 | M199: 0 | N199: 0 | O199: 0 | P199: 0 | Q199: 5 | R199: 5 | S199: 0 | T199: 52008 | U199: 44000 | V199: 55000 | W199: 0
A200: 2006-11-01 | B200: 4 | C200: ОАО "БЫКОВОРАЙГАЗ" | D200: жилищно - коммунальные услуги | E200: 0 | F200: 71 | G200: 0 | H200: 527.3 | I200: 3.8 | J200: 7373 | K200: 6266 | L200: 10834 | M200: 0 | N200: 0 | O200: 0 | P200: 0 | Q200: 71.8 | R200: 0 | S200: 0 | T200: 523483 | U200: 444886 | V200: 769214 | W200: 0
... 2050 more rows

Sheet Справ
A1: Регион | B1: Быковский район | C1: BKV | D1: 73 | E1: 2012-01-01 | F1: 1 | G1: Выбор вида эк.деят. ==> | H1: Месяц | I1: 25 | J1: 0
A2: Период | B2: =SUBTOTAL(5,СВЕДЕНИЯ!$A$20:$A$20010) -> 2018-01-01 | C2: =SUBTOTAL(4,СВЕДЕНИЯ!$A$20:$A$20010) -> 2018-01-01 | D2: =OFFSET(E1,Период-1,0) -> 2018-01-01 | E2: 2012-02-01 | F2: =OFFSET(G1,F1-1,0) -> Выбор вида эк.деят. ==> | G2: Аренда машин оборудования без оператора; прокат бытовых изделий предметов личного пользования | H2: №№ | I2: 4 | J2: 0
A3: Max з/п | B3: =SUBTOTAL(4,СВЕДЕНИЯ!$J$20:$J$20010) -> 81650 | C3: =MATCH(Д2,$E:$E,0) -> 73 | D3: 2 | E3: 2012-03-01 | G3: Вспомогательная деятельность сфере финансового посредничества страхования | H3: ПРЕДПРИЯТИЯ РАЙОНА (ГОРОДА) | I3: 40 | J3: 0
A4: Каталог почты | B4: c:\KTA\ | C4: ="KT2" & Крег & TEXT(C3,"00") & ".txt" -> KT2BKV73.txt | E4: 2012-04-01 | G4: Вспомогательная дополнительная транспортная деятельность | H4: Отрасль экономики | I4: 15 | J4: 0
E5: 2012-05-01 | G5: Государственное управление обеспечение военной безопасности; обязательное социальное обеспечение | H5: Min размер оплаты труда | I5: 10 | J5: 2
E6: 2012-06-01 | G6: Деятельность водного транспорта | H6: Среднесписочная численность работников | I6: 10 | J6: 1 | K6: 1
E7: 2012-07-01 | G7: Деятельность воздушного транспорта | H7: Численность работников, имеющих min размер оплаты труда | I7: 11 | J7: 1 | K7: 1
E8: 2012-08-01 | G8: Деятельность гостиниц ресторанов | H8: Начисленный фонд оплаты труда | I8: 10 | J8: 1
E9: 2012-09-01 | G9: Деятельность общественных объединений | H9: Фонд оплаты труда внешним совместителям | I9: 10 | J9: 1
E10: 2012-10-01 | G10: Деятельность по организации отдыха развлечений, культуры спорта | H10: Среднемесячная заработная плата | I10: 10 | J10: 2
E11: 2012-11-01 | G11: Деятельность сухопутного транспорта | H11: Заработная плата рабочего | I11: 10 | J11: 2
E12: 2012-12-01 | G12: Деятельность экстерриториальных организаций | H12: Заработная плата специалиста, служащего | I12: 10 | J12: 2
E13: 2013-01-01 | G13: Деятельность, связанная использованием вычислительной техники информационных технологий | H13: Общая задолженность по заработной плате | I13: 10 | J13: 1 | K13: 1
E14: 2013-02-01 | G14: Добыча каменного угля, бурого угля торфа | H14: Задолженность из-за отсутствия бюджетного финансирования | I14: 11 | J14: 1 | K14: 1
E15: 2013-03-01 | G15: Добыча металлических руд | H15: Отношение просроченной задолженности к месячному фонду оплаты труда | I15: 12 | J15: 2
E16: 2013-04-01 | G16: Добыча прочих полезных ископаемых | H16: Численность работников перед которыми организация имеет задолженность | I16: 12 | J16: 1 | K16: 1
E17: 2013-05-01 | G17: Добыча сырой нефти природного газа; предоставление услуг этих областях | H17: Налог на доходы физических лиц, тыс. рублей | I17: 13 | J17: 1
E18: 2013-06-01 | G18: Добыча урановой ториевой руд | H18: Кредиторская задолженность предприятия по налогу на конец отчетного месяца | I18: 14 | J18: 1 | K18: 1
E19: 2013-07-01 | G19: Здравоохранение предоставление социальных услуг
E20: 2013-08-01 | G20: Издательская полиграфическая деятельность, тиражирование записанных носителей информации
E21: 2013-09-01 | G21: Лесное хозяйство предоставление услуг этой области
E22: 2013-10-01 | G22: Металлургическое производство
E23: 2013-11-01 | G23: Научные исследования разработки
E24: 2013-12-01 | G24: Обработка вторичного сырья
E25: 2014-01-01 | G25: Обработка древесины производство изделий из дерева пробки, кроме мебели
E26: 2014-02-01 | G26: Образование
E27: 2014-03-01 | G27: Операции недвижимым имуществом
E28: 2014-04-01 | G28: Оптовая торговля, включая торговлю через агентов, кроме торговли автотранспортными средствами мотоциклами
E29: 2014-05-01 | G29: Предоставление персональных услуг
E30: 2014-06-01 | G30: Предоставление прочих видов услуг
E31: 2014-07-01 | G31: Предоставление услуг по ведению домашнего хозяйства
E32: 2014-08-01 | G32: Производство автомобилей, прицепов полуприцепов
E33: 2014-09-01 | G33: Производство аппаратуры для радио, телевидения связи
E34: 2014-10-01 | G34: Производство готовых металлических изделий
E35: 2014-11-01 | G35: Производство изделий медицинской техники, средств измерений, оптических приборов аппаратуры, часов
E36: 2014-12-01 | G36: Производство кожи, изделий из кожи производство обуви
E37: 2015-01-01 | G37: Производство кокса, нефтепродуктов ядерных материалов
E38: 2015-02-01 | G38: Производство машин оборудования
E39: 2015-03-01 | G39: Производство мебели прочей продукции, не включенной другие группировки
E40: 2015-04-01 | G40: Производство одежды; выделка крашение меха
E41: 2015-05-01 | G41: Производство офисного оборудования вычислительной техники
E42: 2015-06-01 | G42: Производство пищевых продуктов, включая напитки
E43: 2015-07-01 | G43: Производство прочих неметаллических минеральных продуктов
E44: 2015-08-01 | G44: Производство резиновых пластмассовых изделий
E45: 2015-09-01 | G45: Производство судов, летательных космических аппаратов прочих транспортных средств
E46: 2015-10-01 | G46: Производство табачных изделий
E47: 2015-11-01 | G47: Производство целлюлозы, древесной массы, бумаги, картона изделий из них
E48: 2015-12-01 | G48: Производство электрических машин электрооборудования
E49: 2016-01-01 | G49: Производство, передача распределение электроэнергии, газа, пара горячей воды
E50: 2016-02-01 | G50: Розничная торговля, кроме торговли автотранспортными средствами мотоциклами; ремонт бытовых изделий
E51: 2016-03-01 | G51: Рыболовство, рыбоводство предоставление услуг этих областях
E52: 2016-04-01 | G52: Сбор, очистка распределение воды
E53: 2016-05-01 | G53: Связь
E54: 2016-06-01 | G54: Сельское хозяйство, охота предоставление услуг этих областях
E55: 2016-07-01 | G55: Страхование
E56: 2016-08-01 | G56: Строительство
E57: 2016-09-01 | G57: Текстильное производство
E58: 2016-10-01 | G58: Торговля автотранспортными средствами мотоциклами, их техническое обслуживание ремонт
E59: 2016-11-01 | G59: Удаление сточных вод, отходов аналогичная деятельность
E60: 2016-12-01 | G60: Финансовое посредничество
E61: 2017-01-01 | G61: Государственное управление общего характера
E62: 2017-02-01
E63: 2017-03-01
E64: 2017-04-01
E65: 2017-05-01
E66: 2017-06-01
E67: 2017-07-01
E68: 2017-08-01
E69: 2017-09-01
E70: 2017-10-01
E71: 2017-11-01
E72: 2017-12-01
E73: 2018-01-01
E74: 2018-02-01
E75: 2018-03-01
E76: 2018-04-01
E77: 2018-05-01
E78: 2018-06-01
E79: 2018-07-01
E80: 2018-08-01
E81: 2018-09-01
E82: 2018-10-01
E83: 2018-11-01
E84: 2018-12-01
E85: 2019-01-01
E86: 2019-02-01
E87: 2019-03-01
E88: 2019-04-01
E89: 2019-05-01
E90: 2019-06-01
E91: 2019-07-01
E92: 2019-08-01
E93: 2019-09-01
E94: 2019-10-01
E95: 2019-11-01
E96: 2019-12-01
E97: 2020-01-01
E98: 2020-02-01
E99: 2020-03-01
E100: 2020-04-01
E101: 2020-05-01
E102: 2020-06-01
E103: 2020-07-01
E104: 2020-08-01
E105: 2020-09-01
E106: 2020-10-01
E107: 2020-11-01
E108: 2020-12-01
E109: 2021-01-01
E110: 2021-02-01
E111: 2021-03-01
E112: 2021-04-01
E113: 2021-05-01
E114: 2021-06-01
E115: 2021-07-01
E116: 2021-08-01
E117: 2021-09-01
E118: 2021-10-01
E119: 2021-11-01
E120: 2021-12-01
E121: 2022-01-01
E122: 2022-02-01
E123: 2022-03-01
E124: 2022-04-01
E125: 2022-05-01
E126: 2022-06-01
E127: 2022-07-01
E128: 2022-08-01
E129: 2022-09-01
E130: 2022-10-01
E131: 2022-11-01
E132: 2022-12-01
E133: 2023-01-01
E134: 2023-02-01
E135: 2023-03-01
E136: 2023-04-01
E137: 2023-05-01
E138: 2023-06-01
E139: 2023-07-01
E140: 2023-08-01
E141: 2023-09-01
E142: 2023-10-01
E143: 2023-11-01
E144: 2023-12-01
E145: 2024-01-01
E146: 2024-02-01
E147: 2024-03-01
E148: 2024-04-01
E149: 2024-05-01
E150: 2024-06-01
E151: 2024-07-01
E152: 2024-08-01
E153: 2024-09-01
E154: 2024-10-01
E155: 2024-11-01
E156: 2024-12-01
E157: 2025-01-01
E158: 2025-02-01
E159: 2025-03-01
E160: 2025-04-01
E161: 2025-05-01
E162: 2025-06-01
E163: 2025-07-01
E164: 2025-08-01
E165: 2025-09-01
E166: 2025-10-01
E167: 2025-11-01
E168: 2025-12-01
E169: 2026-01-01
E170: 2026-02-01
E171: 2026-03-01
E172: 2026-04-01
E173: 2026-05-01
E174: 2026-06-01
E175: 2026-07-01
E176: 2026-08-01
E177: 2026-09-01
E178: 2026-10-01
E179: 2026-11-01
E180: 2026-12-01
E181: 2027-01-01
E182: 2027-02-01
E183: 2027-03-01
E184: 2027-04-01
E185: 2027-05-01
E186: 2027-06-01
E187: 2027-07-01
E188: 2027-08-01
E189: 2027-09-01
E190: 2027-10-01
E191: 2027-11-01
E192: 2027-12-01
E193: 2028-01-01
E194: 2028-02-01
E195: 2028-03-01
E196: 2028-04-01
E197: 2028-05-01
E198: 2028-06-01
E199: 2028-07-01
E200: 2028-08-01
... 8 more rows

Sheet Ошибки
A1: ПРОТОКОЛ ОШИБОК (от 20.02.18 16:13)
A2: по форме СВЕДЕНИЯ: Быковский район за январь 2018 г.
A3: Месяц | B3: Место ошибки | C3: Содержание | D3: Должно быть
